Workbook

Sheet DRUK ZAMÓWIENIA
B2: OKRĘGOWA SPÓŁDZIELNIA MLECZARSKA W PIĄTNICY | Q2: EAN PRODUKTU | AA2: =TEXT(NOW(),"GGMM") -> 1117
B4: Tel. (0-86) 215 64 45, 40, 64, 09, 99 Fax ( 0-86) 215 64 03, 05
B5: handel@piatnica.com.pl
B6: ODBIORCA: | D6: Nazwa Odbiorcy | H6: INFORMACJE
H7: DATA REALIZACJI | O7: =IF(TEXT(F10,"DDDD")="piątek",F10+3,F10+2) -> 2025-03-14 | AN7: Null
B8: NUMER NIP | H8: godziny otwarcia
B9: ZAMÓWIENIE nr | F9: =CONCATENATE("XLS/",AA2,"/",F10-DATE(YEAR(F10),1,0),"/",YEAR(F10)) -> XLS/1117/71/2025 | H9: UWAGI np.: | N9: Godzina dostawy GG:MM
B10: z dnia rrrr-mm-dd | F10: =TODAY() -> 2025-03-12 | H10: Ilość zamawiana | AN10: =TEXT(F10, "dddd") -> środa
B11: Lp | D11: Nazwa artykułu | F11: Opakowanie jednostkowe | G11: Opakowanie zbiorcze | H11: Opakowań jednost. szt. | I11: paleta | J11: paletek | K11: szt | L11: do liczenia paletek | M11: do liczenia palet | N11: Opakowań zbiorczych | O11: Palet | P11: Uwagi | Q11: Wyszukaj
B12: Kolumna1 | C12: INDEKS | D12: NAZWA | E12: Kolumna8 | F12: KUBEK | G12: W kartonie | H12: SZT | I12: Kolumna2 | J12: Kolumna3 | K12: Kolumna4 | L12: Kolumna5 | M12: Kolumna6 | N12: KART | O12: Palet | P12: Kolumna7 | Q12: Kolumna72 | R12: CZY AKT
B13: =SUBTOTAL(103,$C$13:C13) -> 1 | C13: 103002 | D13: Serek wiejski 200g | E13: https://piatnica.com.pl/content/uploads/2020/11/Serek_wiejski_200_g-460x358.png | F13: Kubek 200g | G13: Tacka 12 szt. | H13: =IFERROR(Tabela1[[#This Row],[KART]]*Tabela1[[#This Row],[Kolumna4]],) -> 0 | I13: 2304 | J13: 192 | K13: 12 | L13: =IF(ISERROR(H13/K13),,H13/K13) -> 0 | M13: =IF(ISERROR(H13/I13),,H13/I13) -> 0 | N13: =IF(Tabela1[[#This Row],[Palet]]=0,0,IF(O13>0,O13*J13,)) ->  | O13: =IF(N13>0,N13/J13,"-") ->  | Q13: 5900531000010 | R13: A
B14: =SUBTOTAL(103,$C$13:C14) -> 1 | C14: 103539 | D14: Serek wiejski BIO 200g | E14: https://piatnica.com.pl/content/uploads/2020/11/Serek_wiejski_BIO_200_g-460x358.png | F14: Kubek 200g | G14: Tacka 12 szt. | H14: =IFERROR(Tabela1[[#This Row],[KART]]*Tabela1[[#This Row],[Kolumna4]],) -> 0 | I14: 2304 | J14: 192 | K14: 12 | L14: 0 | M14: 0 | N14: =IF(Tabela1[[#This Row],[Palet]]=0,0,IF(O14>0,O14*J14,)) ->  | O14: =IF(N14>0,N14/J14,"-") ->  | Q14: 5900531050015 | R14: N
B15: =SUBTOTAL(103,$C$13:C15) -> 2 | C15: 103060 | D15: Serek wiejski BEZ LAKTOZY 200g | E15: https://piatnica.com.pl/content/uploads/2020/11/Serek_wiejski_bez_laktozy_200_g-460x358.png | F15: Kubek 200g | G15: Tacka 12 szt. | H15: =IFERROR(Tabela1[[#This Row],[KART]]*Tabela1[[#This Row],[Kolumna4]],) -> 0 | I15: 2304 | J15: 192 | K15: 12 | L15: 0 | M15: 0 | N15: =IF(Tabela1[[#This Row],[Palet]]=0,0,IF(O15>0,O15*J15,)) ->  | Q15: 5900531004308 | R15: A
B16: =SUBTOTAL(103,$C$13:C16) -> 3 | C16: 103065 | D16: Serek wiejski WYSOKOBIAŁKOWY 200g | E16: https://piatnica.com.pl/content/uploads/2020/11/Serek_wiejski_wysokobialkowy_200_g-460x358.png | F16: Kubek 200g | G16: Tacka 12 szt. | H16: =IFERROR(Tabela1[[#This Row],[KART]]*Tabela1[[#This Row],[Kolumna4]],) -> 0 | I16: 2304 | J16: 192 | K16: 12 | L16: 0 | M16: 0 | N16: =IF(Tabela1[[#This Row],[Palet]]=0,0,IF(O16>0,O16*J16,)) ->  | Q16: 5900531007019 | R16: A
B17: =SUBTOTAL(103,$C$13:C17) -> 4 | C17: 103003 | D17: Serek wiejski "RODZINNY" 500g | E17: https://piatnica.com.pl/content/uploads/2020/11/Serek_wiejski_500_g-460x358.png | F17: Kubek 500g | G17: Tacka 6 szt. | H17: =IFERROR(Tabela1[[#This Row],[KART]]*Tabela1[[#This Row],[Kolumna4]],) -> 0 | I17: 960 | J17: 160 | K17: 6 | L17: 0 | M17: 0 | N17: =IF(Tabela1[[#This Row],[Palet]]=0,0,IF(O17>0,O17*J17,)) ->  | Q17: 5900531000041 | R17: A
B18: =SUBTOTAL(103,$C$13:C18) -> 5 | C18: 103001 | D18: Serek wiejski lekki 150g | E18: https://piatnica.com.pl/content/uploads/2020/11/Serek_wiejski_lekki_150_g-460x358.png | F18: Kubek 150g | G18: Tacka 12 szt. | H18: =IFERROR(Tabela1[[#This Row],[KART]]*Tabela1[[#This Row],[Kolumna4]],) -> 0 | I18: 3072 | J18: 256 | K18: 12 | L18: 0 | M18: 0 | N18: =IF(Tabela1[[#This Row],[Palet]]=0,0,IF(O18>0,O18*J18,)) ->  | Q18: 5900531000102 | R18: A
B19: =SUBTOTAL(103,$C$13:C19) -> 5 | C19: 103010 | D19: Serek wiejski lekki "RODZINNY" 500g | E19: https://piatnica.com.pl/content/uploads/2020/11/Serek_wiejski_lekki_500_g-460x358.png | F19: Kubek 500g | G19: Tacka 6 szt. | H19: =IFERROR(Tabela1[[#This Row],[KART]]*Tabela1[[#This Row],[Kolumna4]],) -> 0 | I19: 960 | J19: 160 | K19: 6 | L19: 0 | M19: 0 | N19: =IF(Tabela1[[#This Row],[Palet]]=0,0,IF(O19>0,O19*J19,)) ->  | Q19: 5900531000072 | R19: N
B20: =SUBTOTAL(103,$C$13:C20) -> 6 | C20: 103006 | D20: Serek wiejski ze szczypiorkiem | E20: https://piatnica.com.pl/content/uploads/2020/11/Serek_wiejski_ze_szczypiorkiem_150_g-460x358.png | F20: Kubek 150g | G20: Tacka 12 szt. | H20: =IFERROR(Tabela1[[#This Row],[KART]]*Tabela1[[#This Row],[Kolumna4]],) -> 0 | I20: 3072 | J20: 256 | K20: 12 | L20: 0 | M20: 0 | N20: =IF(Tabela1[[#This Row],[Palet]]=0,0,IF(O20>0,O20*J20,)) ->  | Q20: 5900531000201 | R20: A
B21: =SUBTOTAL(103,$C$13:C21) -> 6 | C21: 103046 | D21: Serek wiejski z miodem | F21: Kubek 150g | G21: Tacka 9 szt. | H21: =IFERROR(Tabela1[[#This Row],[KART]]*Tabela1[[#This Row],[Kolumna4]],) -> 0 | I21: 1728 | J21: 192 | K21: 9 | L21: 0 | M21: 0 | N21: =IF(Tabela1[[#This Row],[Palet]]=0,0,IF(O21>0,O21*J21,)) ->  | Q21: 5900531000928 | R21: N
B22: =SUBTOTAL(103,$C$13:C22) -> 7 | C22: 103045 | D22: Serek wiejski z ananasem | E22: https://piatnica.com.pl/content/uploads/2020/11/11716_ANANAS-SW-DUO-PIAT-11-23_wizualizacja-460x368.png | F22: Kubek 150g | G22: Tacka 9 szt. | H22: =IFERROR(Tabela1[[#This Row],[KART]]*Tabela1[[#This Row],[Kolumna4]],) -> 0 | I22: 2016 | J22: 224 | K22: 9 | L22: 0 | M22: 0 | N22: =IF(Tabela1[[#This Row],[Palet]]=0,0,IF(O22>0,O22*J22,)) ->  | Q22: 5900531000911 | R22: A
B23: =SUBTOTAL(103,$C$13:C23) -> 8 | C23: 103044 | D23: Serek wiejski z brzoskwinią | E23: https://piatnica.com.pl/content/uploads/2020/11/11716_BRZOS-SW-DUO-PIAT-11-23_wizualizacja-460x368.png | F23: Kubek 150g | G23: Tacka 9 szt. | H23: =IFERROR(Tabela1[[#This Row],[KART]]*Tabela1[[#This Row],[Kolumna4]],) -> 0 | I23: 2016 | J23: 224 | K23: 9 | L23: 0 | M23: 0 | N23: =IF(Tabela1[[#This Row],[Palet]]=0,0,IF(O23>0,O23*J23,)) ->  | Q23: 5900531000935 | R23: A
B24: =SUBTOTAL(103,$C$13:C24) -> 9 | C24: 103047 | D24: Serek wiejski z truskawkami | E24: https://piatnica.com.pl/content/uploads/2020/11/11716_TRUSK-SW-DUO-PIAT-11-23_wizualizacja-460x368.png | F24: Kubek 150g | G24: Tacka 9 szt. | H24: =IFERROR(Tabela1[[#This Row],[KART]]*Tabela1[[#This Row],[Kolumna4]],) -> 0 | I24: 2016 | J24: 224 | K24: 9 | L24: 0 | M24: 0 | N24: =IF(Tabela1[[#This Row],[Palet]]=0,0,IF(O24>0,O24*J24,)) ->  | Q24: 5900531000942 | R24: A
B25: =SUBTOTAL(103,$C$13:C25) -> 10 | C25: 103050 | D25: Serek wiejski z malinami i żurawiną | E25: https://piatnica.com.pl/content/uploads/2020/11/11716_MAL-ZUR-SW-DUO-PIAT-11-23_wizualizacja-460x368.png | F25: Kubek 150g | G25: Tacka 9 szt. | H25: =IFERROR(Tabela1[[#This Row],[KART]]*Tabela1[[#This Row],[Kolumna4]],) -> 0 | I25: 2016 | J25: 224 | K25: 9 | L25: 0 | M25: 0 | N25: =IF(Tabela1[[#This Row],[Palet]]=0,0,IF(O25>0,O25*J25,)) ->  | Q25: 5900531000980 | R25: A
B26: =SUBTOTAL(103,$C$13:C26) -> 11 | C26: 103051 | D26: Serek wiejski z jagodami | E26: https://piatnica.com.pl/content/uploads/2020/11/11716_JAGODA-SW-DUO-PIAT-11-23_wizualizacja-460x368.png | F26: Kubek 150g | G26: Tacka 9 szt. | H26: =IFERROR(Tabela1[[#This Row],[KART]]*Tabela1[[#This Row],[Kolumna4]],) -> 0 | I26: 2016 | J26: 224 | K26: 9 | L26: 0 | M26: 0 | N26: =IF(Tabela1[[#This Row],[Palet]]=0,0,IF(O26>0,O26*J26,)) ->  | O26: =IF(N26>0,N26/J26,"-") ->  | Q26: 5900531000973 | R26: A
B27: =SUBTOTAL(103,$C$13:C27) -> 12 | C27: 103053 | D27: Serek wiejski jabłko z cynamonem | E27: https://piatnica.com.pl/content/uploads/2024/05/jablko-i-cynamon-2-460x422.png | F27: Kubek 150g | G27: Tacka 9 szt. | H27: =IFERROR(Tabela1[[#This Row],[KART]]*Tabela1[[#This Row],[Kolumna4]],) -> 0 | I27: 2016 | J27: 224 | K27: 9 | L27: =IF(ISERROR(H27/K27),,H27/K27) -> 0 | M27: =IF(ISERROR(H27/I27),,H27/I27) -> 0 | N27: =IF(Tabela1[[#This Row],[Palet]]=0,0,IF(O27>0,O27*J27,)) ->  | O27: =IF(N27>0,N27/J27,"-") ->  | Q27: 5900531001383 | R27: A
B28: =SUBTOTAL(103,$C$13:C28) -> 13 | C28: 103009 | D28: Twarożek naturalny | E28: https://piatnica.com.pl/content/uploads/2020/11/Twarozek-460x460.png | F28: Kubek 150g | G28: Tacka 12 szt. | H28: =IFERROR(Tabela1[[#This Row],[KART]]*Tabela1[[#This Row],[Kolumna4]],) -> 0 | I28: 2304 | J28: 192 | K28: 12 | L28: 0 | M28: 0 | N28: =IF(Tabela1[[#This Row],[Palet]]=0,0,IF(O28>0,O28*J28,)) ->  | Q28: 5900531000300 | R28: A
B29: =SUBTOTAL(103,$C$13:C29) -> 14 | C29: 105004 | D29: Twaróg wiejski lekki | E29: https://piatnica.com.pl/content/uploads/2020/11/twarog_wiejski_chudy-460x358.png | F29: Klinek 250g | G29: Tacka 6 szt. | H29: =IFERROR(Tabela1[[#This Row],[KART]]*Tabela1[[#This Row],[Kolumna4]],) -> 0 | I29: 2100 | J29: 350 | K29: 6 | L29: 0 | M29: 0 | N29: =IF(Tabela1[[#This Row],[Palet]]=0,0,IF(O29>0,O29*J29,)) ->  | Q29: 5900531004049 | R29: A
B30: =SUBTOTAL(103,$C$13:C30) -> 15 | C30: 105001 | D30: Twaróg wiejski półtłusty | E30: https://piatnica.com.pl/content/uploads/2020/11/twarog_wiejski_poltlusty-460x358.png | F30: Klinek 250g | G30: Tacka 6 szt. | H30: =IFERROR(Tabela1[[#This Row],[KART]]*Tabela1[[#This Row],[Kolumna4]],) -> 0 | I30: 2100 | J30: 350 | K30: 6 | L30: 0 | M30: 0 | N30: =IF(Tabela1[[#This Row],[Palet]]=0,0,IF(O30>0,O30*J30,)) ->  | Q30: 5900531004018 | R30: A
B31: =SUBTOTAL(103,$C$13:C31) -> 16 | C31: 105002 | D31: Twaróg wiejski tłusty | E31: https://piatnica.com.pl/content/uploads/2020/11/twarog_wiejski_tlusty-460x358.png | F31: Klinek 250g | G31: Tacka 6 szt. | H31: =IFERROR(Tabela1[[#This Row],[KART]]*Tabela1[[#This Row],[Kolumna4]],) -> 0 | I31: 2100 | J31: 350 | K31: 6 | L31: 0 | M31: 0 | N31: =IF(Tabela1[[#This Row],[Palet]]=0,0,IF(O31>0,O31*J31,)) ->  | Q31: 5900531004025 | R31: A
B32: =SUBTOTAL(103,$C$13:C32) -> 17 | C32: 105020 | D32: TWARÓG MIELONY PÓŁTŁUSTY 250G | F32: Klinek 250g | G32: Tacka 8 szt. | H32: =IFERROR(Tabela1[[#This Row],[KART]]*Tabela1[[#This Row],[Kolumna4]],) -> 0 | I32: =Tabela1[[#This Row],[Kolumna3]]*Tabela1[[#This Row],[Kolumna4]] -> 1408 | J32: 176 | K32: 8 | L32: =IF(ISERROR(H32/K32),,H32/K32) -> 0 | M32: =IF(ISERROR(H32/I32),,H32/I32) -> 0 | N32: =IF(Tabela1[[#This Row],[Palet]]=0,0,IF(O32>0,O32*J32,)) ->  | O32: =IF(N32>0,N32/J32,"-") ->  | Q32: 5900531105036 | R32: A
B33: =SUBTOTAL(103,$C$13:C33) -> 18 | C33: 105021 | D33: TWARÓG MIELONY CHUDY 250G | F33: Klinek 250g | G33: Tacka 8 szt. | H33: =IFERROR(Tabela1[[#This Row],[KART]]*Tabela1[[#This Row],[Kolumna4]],) -> 0 | I33: =Tabela1[[#This Row],[Kolumna3]]*Tabela1[[#This Row],[Kolumna4]] -> 1408 | J33: 176 | K33: 8 | L33: 0 | M33: 0 | N33: =IF(Tabela1[[#This Row],[Palet]]=0,0,IF(O33>0,O33*J33,)) ->  | Q33: 5900531105043 | R33: A
B34: =SUBTOTAL(103,$C$13:C34) -> 19 | C34: 105511 | D34: Twaróg wiejski BIO | E34: https://piatnica.com.pl/content/uploads/2020/11/Twarog_wiejski_BIO_250_g-460x358.png | F34: Klinek 250g | G34: Tacka 6 szt. | H34: =IFERROR(Tabela1[[#This Row],[KART]]*Tabela1[[#This Row],[Kolumna4]],) -> 0 | I34: 2100 | J34: 350 | K34: 6 | L34: 0 | M34: 0 | N34: =IF(Tabela1[[#This Row],[Palet]]=0,0,IF(O34>0,O34*J34,)) ->  | Q34: 5900531054013 | R34: A
B35: =SUBTOTAL(103,$C$13:C35) -> 20 | C35: 105005 | D35: Twaróg SERNIKOWY mielony | E35: https://piatnica.com.pl/content/uploads/2020/11/14631_Twarog-sernikowy_2160x1680-460x358.png | F35: Wiaderko 1kg | G35: Tacka 6 szt. | H35: =IFERROR(Tabela1[[#This Row],[KART]]*Tabela1[[#This Row],[Kolumna4]],) -> 0 | I35: 594 | J35: 99 | K35: 6 | L35: 0 | M35: 0 | N35: =IF(Tabela1[[#This Row],[Palet]]=0,0,IF(O35>0,O35*J35,)) ->  | Q35: 5900531004056 | R35: A
B36: =SUBTOTAL(103,$C$13:C36) -> 21 | C36: 104015 | D36: Twój Smak naturalny | E36: https://piatnica.com.pl/content/uploads/2020/11/Twoj_smak_naturalny_135_g-460x358.png | F36: Kubek 135g | G36: Karton 10 szt. | H36: =IFERROR(Tabela1[[#This Row],[KART]]*Tabela1[[#This Row],[Kolumna4]],) -> 0 | I36: 4320 | J36: 432 | K36: 10 | L36: 0 | M36: 0 | N36: =IF(Tabela1[[#This Row],[Palet]]=0,0,IF(O36>0,O36*J36,)) ->  | Q36: 5900531000508 | R36: A
B37: =SUBTOTAL(103,$C$13:C37) -> 22 | C37: 104006 | D37: Twój Smak naturalny 200g | E37: https://piatnica.com.pl/content/uploads/2020/11/Twoj_smak_naturalny_200_g-2-460x358.png | F37: Kubek 200g | G37: Karton 8 szt. | H37: =IFERROR(Tabela1[[#This Row],[KART]]*Tabela1[[#This Row],[Kolumna4]],) -> 0 | I37: 3456 | J37: 432 | K37: 8 | L37: 0 | M37: 0 | N37: =IF(Tabela1[[#This Row],[Palet]]=0,0,IF(O37>0,O37*J37,)) ->  | Q37: 5900531000607 | R37: A
B38: =SUBTOTAL(103,$C$13:C38) -> 23 | C38: 104017 | D38: Twój Smak z przyprawami | E38: https://piatnica.com.pl/content/uploads/2020/11/Twoj_smak_z_przyprawami_135_g-460x358.png | F38: Kubek 135g | G38: Karton 10 szt. | H38: =IFERROR(Tabela1[[#This Row],[KART]]*Tabela1[[#This Row],[Kolumna4]],) -> 0 | I38: 4320 | J38: 432 | K38: 10 | L38: 0 | M38: 0 | N38: =IF(Tabela1[[#This Row],[Palet]]=0,0,IF(O38>0,O38*J38,)) ->  | Q38: 5900531000522 | R38: A
B39: =SUBTOTAL(103,$C$13:C39) -> 24 | C39: 104016 | D39: Twój Smak z chrzanem | E39: https://piatnica.com.pl/content/uploads/2020/11/Twoj_smak_z_chrzanem_135_g-460x358.png | F39: Kubek 135g | G39: Karton 10 szt. | H39: =IFERROR(Tabela1[[#This Row],[KART]]*Tabela1[[#This Row],[Kolumna4]],) -> 0 | I39: 4320 | J39: 432 | K39: 10 | L39: 0 | M39: 0 | N39: =IF(Tabela1[[#This Row],[Palet]]=0,0,IF(O39>0,O39*J39,)) ->  | Q39: 5900531000515 | R39: A
B40: =SUBTOTAL(103,$C$13:C40) -> 25 | C40: 104018 | D40: Twój Smak z czosnkiem | E40: https://piatnica.com.pl/content/uploads/2020/11/Twoj_smak_z_czosnkiem_135_g-460x358.png | F40: Kubek 135g | G40: Karton 10 szt. | H40: =IFERROR(Tabela1[[#This Row],[KART]]*Tabela1[[#This Row],[Kolumna4]],) -> 0 | I40: 4320 | J40: 432 | K40: 10 | L40: 0 | M40: 0 | N40: =IF(Tabela1[[#This Row],[Palet]]=0,0,IF(O40>0,O40*J40,)) ->  | Q40: 5900531000539 | R40: A
B41: =SUBTOTAL(103,$C$13:C41) -> 26 | C41: 104019 | D41: Twój Smak ze szczypiorkiem | E41: https://piatnica.com.pl/content/uploads/2020/11/Two%CC%81j_smak_ze_szczypiorkiem_135_g-460x358.png | F41: Kubek 135g | G41: Karton 10 szt. | H41: =IFERROR(Tabela1[[#This Row],[KART]]*Tabela1[[#This Row],[Kolumna4]],) -> 0 | I41: 4320 | J41: 432 | K41: 10 | L41: 0 | M41: 0 | N41: =IF(Tabela1[[#This Row],[Palet]]=0,0,IF(O41>0,O41*J41,)) ->  | Q41: 5900531000546 | R41: A
B42: =SUBTOTAL(103,$C$13:C42) -> 27 | C42: 104050 | D42: Twój Smak z ziołami | E42: https://piatnica.com.pl/content/uploads/2020/11/Twoj_smak_z_ziolami_135_g-460x358.png | F42: Kubek 135g | G42: Karton 10 szt. | H42: =IFERROR(Tabela1[[#This Row],[KART]]*Tabela1[[#This Row],[Kolumna4]],) -> 0 | I42: 4320 | J42: 432 | K42: 10 | L42: 0 | M42: 0 | N42: =IF(Tabela1[[#This Row],[Palet]]=0,0,IF(O42>0,O42*J42,)) ->  | Q42: 5900531001710 | R42: A
B43: =SUBTOTAL(103,$C$13:C43) -> 28 | C43: 104520 | D43: Twój Smak „PUSZYSTY” naturalny | E43: https://piatnica.com.pl/content/uploads/2020/11/Twoj_smak_puszysty_naturalny_150_g-460x358.png | F43: Kubek 150g | G43: Karton 10 szt. | H43: =IFERROR(Tabela1[[#This Row],[KART]]*Tabela1[[#This Row],[Kolumna4]],) -> 0 | I43: 2040 | J43: 204 | K43: 10 | L43: 0 | M43: 0 | N43: =IF(Tabela1[[#This Row],[Palet]]=0,0,IF(O43>0,O43*J43,)) ->  | Q43: 5900531000706 | R43: A
B44: =SUBTOTAL(103,$C$13:C44) -> 29 | C44: 104522 | D44: Twój Smak „PUSZYSTY” zioła | E44: https://piatnica.com.pl/content/uploads/2020/11/Twoj_smak_puszysty_z_ziolami_150_g-460x358.png | F44: Kubek 150g | G44: Karton 10 szt. | H44: =IFERROR(Tabela1[[#This Row],[KART]]*Tabela1[[#This Row],[Kolumna4]],) -> 0 | I44: 2040 | J44: 204 | K44: 10 | L44: 0 | M44: 0 | N44: =IF(Tabela1[[#This Row],[Palet]]=0,0,IF(O44>0,O44*J44,)) ->  | Q44: 5900531000720 | R44: A
B45: =SUBTOTAL(103,$C$13:C45) -> 30 | C45: 104523 | D45: Twój Smak „PUSZYSTY” szczypior | E45: https://piatnica.com.pl/content/uploads/2020/11/Twoj_smak_puszysty_ze_szczypiorem_150_g-460x358.png | F45: Kubek 150g | G45: Karton 10 szt. | H45: =IFERROR(Tabela1[[#This Row],[KART]]*Tabela1[[#This Row],[Kolumna4]],) -> 0 | I45: 2040 | J45: 204 | K45: 10 | L45: 0 | M45: 0 | N45: =IF(Tabela1[[#This Row],[Palet]]=0,0,IF(O45>0,O45*J45,)) ->  | Q45: 5900531000713 | R45: A
B46: =SUBTOTAL(103,$C$13:C46) -> 31 | C46: 104521 | D46: Twój Smak „PUSZYSTY” pieprz | E46: https://piatnica.com.pl/content/uploads/2020/11/Twoj_smak_puszysty_z_pieprzem_150_g-460x358.png | F46: Kubek 150g | G46: Karton 10 szt. | H46: =IFERROR(Tabela1[[#This Row],[KART]]*Tabela1[[#This Row],[Kolumna4]],) -> 0 | I46: 2040 | J46: 204 | K46: 10 | L46: 0 | M46: 0 | N46: =IF(Tabela1[[#This Row],[Palet]]=0,0,IF(O46>0,O46*J46,)) ->  | Q46: 5900531000737 | R46: A
B47: =SUBTOTAL(103,$C$13:C47) -> 32 | C47: 104535 | D47: Twój Smak „PUSZYSTY” z łososiem | E47: https://piatnica.com.pl/content/uploads/2020/11/Twoj_smak_puszysty_z_lososiem_150_g-460x358.png | F47: Kubek 150g | G47: Karton 10 szt. | H47: =IFERROR(Tabela1[[#This Row],[KART]]*Tabela1[[#This Row],[Kolumna4]],) -> 0 | I47: 2040 | J47: 204 | K47: 10 | L47: 0 | M47: 0 | N47: =IF(Tabela1[[#This Row],[Palet]]=0,0,IF(O47>0,O47*J47,)) ->  | Q47: 5900531000775 | R47: A
B48: =SUBTOTAL(103,$C$13:C48) -> 33 | C48: 104030 | D48: Twój Smak „PUSZYSTY” z pomidorami | E48: https://piatnica.com.pl/content/uploads/2020/11/Twoj_smak_puszysty_z_pomidorami_suszonymi_na_sloncu_150_g-460x358.png | F48: Kubek 150g | G48: Karton 10 szt. | H48: =IFERROR(Tabela1[[#This Row],[KART]]*Tabela1[[#This Row],[Kolumna4]],) -> 0 | I48: 2040 | J48: 204 | K48: 10 | L48: 0 | M48: 0 | N48: =IF(Tabela1[[#This Row],[Palet]]=0,0,IF(O48>0,O48*J48,)) ->  | Q48: 5900531000843 | R48: A
B49: =SUBTOTAL(103,$C$13:C49) -> 33 | C49: 104562 | D49: Twój Smak „PUSZYSTY” z grzybami leśnymi | F49: Kubek 150g | G49: Karton 10 szt. | H49: =IFERROR(Tabela1[[#This Row],[KART]]*Tabela1[[#This Row],[Kolumna4]],) -> 0 | I49: 2040 | J49: 204 | K49: 10 | L49: 0 | M49: 0 | N49: =IF(Tabela1[[#This Row],[Palet]]=0,0,IF(O49>0,O49*J49,)) ->  | O49: =IF(N49>0,N49/J49,"-") ->  | Q49: 5900531001758 | R49: N
B50: =SUBTOTAL(103,$C$13:C50) -> 34 | C50: 104563 | D50: Twój Smak „PUSZYSTY” z chrzanem | E50: https://piatnica.com.pl/content/uploads/2020/11/Twoj_smak_puszysty_z_chrzanem_150_g-460x358.png | F50: Kubek 150g | G50: Karton 10 szt. | H50: =IFERROR(Tabela1[[#This Row],[KART]]*Tabela1[[#This Row],[Kolumna4]],) -> 0 | I50: 2040 | J50: 204 | K50: 10 | L50: 0 | M50: 0 | N50: =IF(Tabela1[[#This Row],[Palet]]=0,0,IF(O50>0,O50*J50,)) ->  | Q50: 5900531000867 | R50: A
B51: =SUBTOTAL(103,$C$13:C51) -> 35 | C51: 104411 | D51: Twój Smak Aksamitny naturalny | E51: https://piatnica.com.pl/content/uploads/2020/11/11416_TS_AKS_KLASYCZNY-135G-PIAT_wizualizacja-460x358.png | F51: Kubek 135g | G51: Karton 8 szt. | H51: =IFERROR(Tabela1[[#This Row],[KART]]*Tabela1[[#This Row],[Kolumna4]],) -> 0 | I51: 3264 | J51: 408 | K51: 8 | L51: 0 | M51: 0 | N51: =IF(Tabela1[[#This Row],[Palet]]=0,0,IF(O51>0,O51*J51,)) ->  | Q51: 5900531006005 | R51: A
B52: =SUBTOTAL(103,$C$13:C52) -> 36 | C52: 104412 | D52: Twój Smak Aksamitny z ziołami | E52: https://piatnica.com.pl/content/uploads/2020/11/11416_TS-AKS-ZIOLOWY-135G-PIAT_wizualizacja-460x358.png | F52: Kubek 135g | G52: Karton 8 szt. | H52: =IFERROR(Tabela1[[#This Row],[KART]]*Tabela1[[#This Row],[Kolumna4]],) -> 0 | I52: 3264 | J52: 408 | K52: 8 | L52: 0 | M52: 0 | N52: =IF(Tabela1[[#This Row],[Palet]]=0,0,IF(O52>0,O52*J52,)) ->  | Q52: 5900531006012 | R52: A
B53: =SUBTOTAL(103,$C$13:C53) -> 36 | C53: 104403 | D53: Serek Milandia ze szpinakiem i czosnkiem | F53: Kubek 135g | G53: Karton 10 szt. | H53: =IFERROR(Tabela1[[#This Row],[KART]]*Tabela1[[#This Row],[Kolumna4]],) -> 0 | I53: 3150 | J53: 315 | K53: 12 | L53: 0 | M53: 0 | N53: =IF(Tabela1[[#This Row],[Palet]]=0,0,IF(O53>0,O53*J53,)) ->  | Q53: 5900531006029 | R53: N
B54: =SUBTOTAL(103,$C$13:C54) -> 37 | C54: 104414 | D54: Twój Smak Aksamitny z Łososiem | E54: https://piatnica.com.pl/content/uploads/2020/11/11416_TS_AKS_LOSOS-135G-PIAT_wizualizacja-460x358.png | F54: Kubek 135g | G54: Karton 8 szt. | H54: =IFERROR(Tabela1[[#This Row],[KART]]*Tabela1[[#This Row],[Kolumna4]],) -> 0 | I54: 3264 | J54: 408 | K54: 8 | L54: 0 | M54: 0 | N54: =IF(Tabela1[[#This Row],[Palet]]=0,0,IF(O54>0,O54*J54,)) ->  | Q54: 5900531006036 | R54: A
B55: =SUBTOTAL(103,$C$13:C55) -> 37 | C55: 104415 | D55: Twój Smak Aksamitny z jogurtem | F55: Kubek 135g | G55: Karton 8 szt. | H55: =IFERROR(Tabela1[[#This Row],[KART]]*Tabela1[[#This Row],[Kolumna4]],) -> 0 | I55: 3264 | J55: 408 | K55: 8 | L55: 0 | M55: 0 | N55: =IF(Tabela1[[#This Row],[Palet]]=0,0,IF(O55>0,O55*J55,)) ->  | Q55: 5900531006043 | R55: N
B56: =SUBTOTAL(103,$C$13:C56) -> 38 | C56: 106001 | D56: Mascarpone | E56: https://piatnica.com.pl/content/uploads/2022/03/14631_Mascarpone-250g_2160x1680-460x358.png | F56: Kubek 250g | G56: Karton 6 szt. | H56: =IFERROR(Tabela1[[#This Row],[KART]]*Tabela1[[#This Row],[Kolumna4]],) -> 0 | I56: 1800 | J56: 300 | K56: 6 | L56: 0 | M56: 0 | N56: =IF(Tabela1[[#This Row],[Palet]]=0,0,IF(O56>0,O56*J56,)) ->  | Q56: 5900531001406 | R56: A
B57: =SUBTOTAL(103,$C$13:C57) -> 39 | C57: 106003 | D57: Mascarpone 500g | E57: https://piatnica.com.pl/content/uploads/2020/11/14631_Mascarpone-500g_2160x1680-460x358.png | F57: Kubek 500g | G57: Karton 6 szt. | H57: =IFERROR(Tabela1[[#This Row],[KART]]*Tabela1[[#This Row],[Kolumna4]],) -> 0 | I57: 1080 | J57: 180 | K57: 6 | L57: 0 | M57: 0 | N57: =IF(Tabela1[[#This Row],[Palet]]=0,0,IF(O57>0,O57*J57,)) ->  | Q57: 5900531001475 | R57: A
B58: =SUBTOTAL(103,$C$13:C58) -> 39 | C58: 664001 | D58: Kefir 0% | F58: Kubek 330g | G58: Tacka 12 szt. | H58: =IFERROR(Tabela1[[#This Row],[KART]]*Tabela1[[#This Row],[Kolumna4]],) -> 0 | I58: 2016 | J58: 168 | K58: 12 | L58: 0 | M58: 0 | N58: =IF(Tabela1[[#This Row],[Palet]]=0,0,IF(O58>0,O58*J58,)) ->  | Q58: 5900531003776 | R58: N
B59: =SUBTOTAL(103,$C$13:C59) -> 40 | C59: 664002 | D59: Kefir 2% | F59: Kubek 330g | G59: Tacka 12 szt. | H59: =IFERROR(Tabela1[[#This Row],[KART]]*Tabela1[[#This Row],[Kolumna4]],) -> 0 | I59: =Tabela1[[#This Row],[Kolumna3]]*Tabela1[[#This Row],[Kolumna4]] -> 1728 | J59: 144 | K59: 12 | L59: 0 | M59: 0 | N59: =IF(Tabela1[[#This Row],[Palet]]=0,0,IF(O59>0,O59*J59,)) ->  | Q59: 5900531003776 | R59: A
B60: =SUBTOTAL(103,$C$13:C60) -> 41 | C60: 109001 | D60: Serek Homogenizowany naturalny | E60: https://piatnica.com.pl/content/uploads/2020/11/Serek_homogenizowany_naturalny_150_g-460x358.png | F60: Kubek 150g | G60: Tacka 12 szt. | H60: =IFERROR(Tabela1[[#This Row],[KART]]*Tabela1[[#This Row],[Kolumna4]],) -> 0 | I60: 2688 | J60: 224 | K60: 12 | L60: 0 | M60: 0 | N60: =IF(Tabela1[[#This Row],[Palet]]=0,0,IF(O60>0,O60*J60,)) ->  | Q60: 5900531011030 | R60: A
B61: =SUBTOTAL(103,$C$13:C61) -> 42 | C61: 109002 | D61: Serek Homogenizowany waniliowy | E61: https://piatnica.com.pl/content/uploads/2020/11/Serek_homogenizowany_waniliowy_150_g-460x358.png | F61: Kubek 150g | G61: Tacka 12 szt. | H61: =IFERROR(Tabela1[[#This Row],[KART]]*Tabela1[[#This Row],[Kolumna4]],) -> 0 | I61: 2688 | J61: 224 | K61: 12 | L61: 0 | M61: 0 | N61: =IF(Tabela1[[#This Row],[Palet]]=0,0,IF(O61>0,O61*J61,)) ->  | Q61: 5900531011016 | R61: A
B62: =SUBTOTAL(103,$C$13:C62) -> 43 | C62: 109003 | D62: Serek Homogenizowany truskawkowy | E62: https://piatnica.com.pl/content/uploads/2020/11/Serek_homogenizowany_truskawkowy_150_g-460x358.png | F62: Kubek 150g | G62: Tacka 12 szt. | H62: =IFERROR(Tabela1[[#This Row],[KART]]*Tabela1[[#This Row],[Kolumna4]],) -> 0 | I62: 2688 | J62: 224 | K62: 12 | L62: 0 | M62: 0 | N62: =IF(Tabela1[[#This Row],[Palet]]=0,0,IF(O62>0,O62*J62,)) ->  | Q62: 5900531011023 | R62: A
B63: =SUBTOTAL(103,$C$13:C63) -> 44 | C63: 109004 | D63: Serek Homogenizowany straciatella | E63: https://piatnica.com.pl/content/uploads/2020/11/Serek_homogenizowany_straciatella_150_g-460x358.png | F63: Kubek 150g | G63: Tacka 12 szt. | H63: =IFERROR(Tabela1[[#This Row],[KART]]*Tabela1[[#This Row],[Kolumna4]],) -> 0 | I63: 2688 | J63: 224 | K63: 12 | L63: 0 | M63: 0 | N63: =IF(Tabela1[[#This Row],[Palet]]=0,0,IF(O63>0,O63*J63,)) ->  | Q63: 5900531011047 | R63: A
B64: =SUBTOTAL(103,$C$13:C64) -> 45 | C64: 109005 | D64: Serek Homogenizowany kokosowy | E64: https://piatnica.com.pl/content/uploads/2021/06/11850_kokos-460x358.png | F64: Kubek 150g | G64: Tacka 12 szt. | H64: =IFERROR(Tabela1[[#This Row],[KART]]*Tabela1[[#This Row],[Kolumna4]],) -> 0 | I64: 2688 | J64: 224 | K64: 12 | L64: 0 | M64: 0 | N64: =IF(Tabela1[[#This Row],[Palet]]=0,0,IF(O64>0,O64*J64,)) ->  | Q64: 5900531011061 | R64: A
B65: =SUBTOTAL(103,$C$13:C65) -> 46 | C65: 109008 | D65: Serek Homogenizowany ciasteczkowy | E65: https://piatnica.com.pl/content/uploads/2023/05/11850_ciasteczka_wizualizacja-460x358.png | F65: Kubek 150g | G65: Tacka 12 szt. | H65: =IFERROR(Tabela1[[#This Row],[KART]]*Tabela1[[#This Row],[Kolumna4]],) -> 0 | I65: 2688 | J65: 224 | K65: 12 | L65: =IF(ISERROR(H65/K65),,H65/K65) -> 0 | M65: =IF(ISERROR(H65/I65),,H65/I65) -> 0 | N65: =IF(Tabela1[[#This Row],[Palet]]=0,0,IF(O65>0,O65*J65,)) ->  | O65: =IF(N65>0,N65/J65,"-") ->  | Q65: 5900531011139 | R65: A
B66: =SUBTOTAL(103,$C$13:C66) -> 47 | C66: 109014 | D66: Serek Homogenizowany brzoskwiniowy 150g | E66: https://piatnica.com.pl/content/uploads/2025/03/11850_ciasteczka_wizualizacja-1-460x358.png | F66: Kubek 150g | G66: Tacka 12 szt. | H66: =IFERROR(Tabela1[[#This Row],[KART]]*Tabela1[[#This Row],[Kolumna4]],) -> 0 | I66: 2688 | J66: 224 | K66: 12 | L66: =IF(ISERROR(H66/K66),,H66/K66) -> 0 | M66: =IF(ISERROR(H66/I66),,H66/I66) -> 0 | N66: =IF(Tabela1[[#This Row],[Palet]]=0,0,IF(O66>0,O66*J66,)) ->  | O66: =IF(N66>0,N66/J66,"-") ->  | Q66: 5900531011207 | R66: A
B67: =SUBTOTAL(103,$C$13:C67) -> 48 | C67: 108001 | D67: Twój Smak w Plastrach Śmietankowy | E67: https://piatnica.com.pl/content/uploads/2020/11/Twoj-Smak_smietankowy_w_plastrach_naturalny-460x358.png | F67: Tacka 150g | G67: Karton 10 szt. | H67: =IFERROR(Tabela1[[#This Row],[KART]]*Tabela1[[#This Row],[Kolumna4]],) -> 0 | I67: 1120 | J67: 112 | K67: 10 | L67: =IF(ISERROR(H67/K67),,H67/K67) -> 0 | M67: =IF(ISERROR(H67/I67),,H67/I67) -> 0 | N67: =IF(Tabela1[[#This Row],[Palet]]=0,0,IF(O67>0,O67*J67,)) ->  | Q67: 5901939020013 | R67: A
B68: =SUBTOTAL(103,$C$13:C68) -> 49 | C68: 108002 | D68: Twój Smak w Plastrach z Ziołami | E68: https://piatnica.com.pl/content/uploads/2020/11/Twoj-Smak_smietankowy_w_plastrach_ziolowy-460x358.png | F68: Tacka 150g | G68: Karton 10 szt. | H68: =IFERROR(Tabela1[[#This Row],[KART]]*Tabela1[[#This Row],[Kolumna4]],) -> 0 | I68: 1120 | J68: 112 | K68: 10 | L68: =IF(ISERROR(H68/K68),,H68/K68) -> 0 | M68: =IF(ISERROR(H68/I68),,H68/I68) -> 0 | N68: =IF(Tabela1[[#This Row],[Palet]]=0,0,IF(O68>0,O68*J68,)) ->  | Q68: 5901939020044 | R68: A
B69: =SUBTOTAL(103,$C$13:C69) -> 50 | C69: 108004 | D69: Twój Smak w Plastrach Papryka i Pomidor | E69: https://piatnica.com.pl/content/uploads/2020/11/Twoj-Smak_serek_smietankowy_w_plastrach_paprykowy-460x358.png | F69: Tacka 150g | G69: Karton 10 szt. | H69: =IFERROR(Tabela1[[#This Row],[KART]]*Tabela1[[#This Row],[Kolumna4]],) -> 0 | I69: 1120 | J69: 112 | K69: 10 | L69: =IF(ISERROR(H69/K69),,H69/K69) -> 0 | M69: =IF(ISERROR(H69/I69),,H69/I69) -> 0 | N69: =IF(Tabela1[[#This Row],[Palet]]=0,0,IF(O69>0,O69*J69,)) ->  | Q69: 5901939020020 | R69: A
B70: =SUBTOTAL(103,$C$13:C70) -> 51 | C70: 102009 | D70: Śmietana 10% | E70: https://piatnica.com.pl/content/uploads/2020/11/smietana-3.png | F70: Kubek 200g | G70: Tacka 12 szt. | H70: =IFERROR(Tabela1[[#This Row],[KART]]*Tabela1[[#This Row],[Kolumna4]],) -> 0 | I70: 2400 | J70: 200 | K70: 12 | L70: 0 | M70: 0 | N70: =IF(Tabela1[[#This Row],[Palet]]=0,0,IF(O70>0,O70*J70,)) ->  | Q70: 5900531001062 | R70: A
B71: =SUBTOTAL(103,$C$13:C71) -> 52 | C71: 102002 | D71: Śmietana 12% | E71: https://piatnica.com.pl/content/uploads/2020/11/Smietana_12_200_g-460x358.png | F71: Kubek 200g | G71: Tacka 12 szt. | H71: =IFERROR(Tabela1[[#This Row],[KART]]*Tabela1[[#This Row],[Kolumna4]],) -> 0 | I71: 2400 | J71: 200 | K71: 12 | L71: 0 | M71: 0 | N71: =IF(Tabela1[[#This Row],[Palet]]=0,0,IF(O71>0,O71*J71,)) ->  | Q71: 5901939010014 | R71: A
B72: =SUBTOTAL(103,$C$13:C72) -> 53 | C72: 102011 | D72: Śmietana 12 % | E72: https://piatnica.com.pl/content/uploads/2020/11/Smietana_12_400_g-460x358.png | F72: Kubek 400g | G72: Tacka 12 szt. | H72: =IFERROR(Tabela1[[#This Row],[KART]]*Tabela1[[#This Row],[Kolumna4]],) -> 0 | I72: 1344 | J72: 112 | K72: 12 | L72: 0 | M72: 0 | N72: =IF(Tabela1[[#This Row],[Palet]]=0,0,IF(O72>0,O72*J72,)) ->  | Q72: 5900531001109 | R72: A
B73: =SUBTOTAL(103,$C$13:C73) -> 54 | C73: 102003 | D73: Śmietana 18% | E73: https://piatnica.com.pl/content/uploads/2020/11/Smietana_18_200_g-460x358.png | F73: Kubek 200g | G73: Tacka 12 szt. | H73: =IFERROR(Tabela1[[#This Row],[KART]]*Tabela1[[#This Row],[Kolumna4]],) -> 0 | I73: 2400 | J73: 200 | K73: 12 | L73: 0 | M73: 0 | N73: =IF(Tabela1[[#This Row],[Palet]]=0,0,IF(O73>0,O73*J73,)) ->  | Q73: 5900531001031 | R73: A
B74: =SUBTOTAL(103,$C$13:C74) -> 54 | C74: 102508 | D74: Śmietana 18% BIO | E74: https://piatnica.com.pl/content/uploads/2020/11/Smietana_18_BIO_200_g-460x358.png | F74: Kubek 200g | G74: Tacka 12 szt. | H74: =IFERROR(Tabela1[[#This Row],[KART]]*Tabela1[[#This Row],[Kolumna4]],) -> 0 | I74: 2400 | J74: 200 | K74: 12 | L74: 0 | M74: 0 | N74: =IF(Tabela1[[#This Row],[Palet]]=0,0,IF(O74>0,O74*J74,)) ->  | Q74: 5900531009013 | R74: N
B75: =SUBTOTAL(103,$C$13:C75) -> 54 | C75: 662001 | D75: ŚMIETANA 18% 250 ml | F75: Butelka 250g | G75: Zgrzewka 12 szt. | H75: =IFERROR(Tabela1[[#This Row],[KART]]*Tabela1[[#This Row],[Kolumna4]],) -> 0 | I75: 2304 | J75: 192 | K75: 12 | L75: 0 | M75: 0 | N75: =IF(Tabela1[[#This Row],[Palet]]=0,0,IF(O75>0,O75*J75,)) ->  | Q75: 5901939005010 | R75: N
B76: =SUBTOTAL(103,$C$13:C76) -> 55 | C76: 102007 | D76: Śmietana 18% | E76: https://piatnica.com.pl/content/uploads/2020/11/Smietana_18_400_g-460x358.png | F76: Kubek 400g | G76: Tacka 12 szt. | H76: =IFERROR(Tabela1[[#This Row],[KART]]*Tabela1[[#This Row],[Kolumna4]],) -> 0 | I76: 1344 | J76: 112 | K76: 12 | L76: 0 | M76: 0 | N76: =IF(Tabela1[[#This Row],[Palet]]=0,0,IF(O76>0,O76*J76,)) ->  | Q76: 5900531001130 | R76: A
B77: =SUBTOTAL(103,$C$13:C77) -> 56 | C77: 102026 | D77: Śmietana 30% | E77: https://piatnica.com.pl/content/uploads/2020/11/11855_30_SM_200G-PIAT-7-22_wizualizacja-460x358.png | F77: Kubek 200g | G77: Tacka 12 szt. | H77: =IFERROR(Tabela1[[#This Row],[KART]]*Tabela1[[#This Row],[Kolumna4]],) -> 0 | I77: 2400 | J77: 200 | K77: 12 | L77: 0 | M77: 0 | N77: =IF(Tabela1[[#This Row],[Palet]]=0,0,IF(O77>0,O77*J77,)) ->  | Q77: 5900531001086 | R77: A
B78: =SUBTOTAL(103,$C$13:C78) -> 56 | C78: 662002 | D78: Śmietana 30% 250 ml | F78: Butelka 250g | G78: Zgrzewka 12 szt. | H78: =IFERROR(Tabela1[[#This Row],[KART]]*Tabela1[[#This Row],[Kolumna4]],) -> 0 | I78: 2304 | J78: 192 | K78: 12 | L78: 0 | M78: 0 | N78: =IF(Tabela1[[#This Row],[Palet]]=0,0,IF(O78>0,O78*J78,)) ->  | Q78: 5901939005027 | R78: N
B79: =SUBTOTAL(103,$C$13:C79) -> 57 | C79: 102001 | D79: Śmietanka 30% do ubijania | E79: https://piatnica.com.pl/content/uploads/2020/11/12133_30_SM_400G-PIAT-7-22_wizualizacja-460x358.png | F79: Kubek 400g | G79: Tacka 12 szt. | H79: =IFERROR(Tabela1[[#This Row],[KART]]*Tabela1[[#This Row],[Kolumna4]],) -> 0 | I79: 1344 | J79: 112 | K79: 12 | L79: 0 | M79: 0 | N79: =IF(Tabela1[[#This Row],[Palet]]=0,0,IF(O79>0,O79*J79,)) ->  | Q79: 5900531001079 | R79: A
B80: =SUBTOTAL(103,$C$13:C80) -> 58 | C80: 102005 | D80: Śmietana 36% | E80: https://piatnica.com.pl/content/uploads/2020/11/11855_36_SMIET_200G_PIAT_wizualizacja-460x358.png | F80: Kubek 200g | G80: Tacka 12 szt. | H80: =IFERROR(Tabela1[[#This Row],[KART]]*Tabela1[[#This Row],[Kolumna4]],) -> 0 | I80: 2400 | J80: 200 | K80: 12 | L80: 0 | M80: 0 | N80: =IF(Tabela1[[#This Row],[Palet]]=0,0,IF(O80>0,O80*J80,)) ->  | Q80: 5900531001024 | R80: A
B81: =SUBTOTAL(103,$C$13:C81) -> 59 | C81: 107100 | D81: Jogurt Naturalny 2% 180g | E81: https://piatnica.com.pl/content/uploads/2020/11/12259_NATUR_JOG_330G_PIAT_wizualizacja-460x358.png | F81: Kubek 180g | G81: Tacka 20 szt. | H81: =IFERROR(Tabela1[[#This Row],[KART]]*Tabela1[[#This Row],[Kolumna4]],) -> 0 | I81: 2400 | J81: 120 | K81: 20 | L81: 0 | M81: 0 | N81: =IF(Tabela1[[#This Row],[Palet]]=0,0,IF(O81>0,O81*J81,)) ->  | Q81: 5900531000423 | R81: A
B82: =SUBTOTAL(103,$C$13:C82) -> 60 | C82: 107548 | D82: Jogurt BIO | E82: https://piatnica.com.pl/content/uploads/2020/11/1290_BIO_NAT_JOG_140G_PIAT_wizualizacja-2-460x358.png | F82: Kubek 140g | G82: Tacka 20 szt. | H82: =IFERROR(Tabela1[[#This Row],[KART]]*Tabela1[[#This Row],[Kolumna4]],) -> 0 | I82: 3200 | J82: 160 | K82: 20 | L82: 0 | M82: 0 | N82: =IF(Tabela1[[#This Row],[Palet]]=0,0,IF(O82>0,O82*J82,)) ->  | Q82: 5900531003424 | R82: A
B83: =SUBTOTAL(103,$C$13:C83) -> 61 | C83: 107020 | D83: Jogurt Naturalny 2% 330g | E83: https://piatnica.com.pl/content/uploads/2020/11/12259_NATUR_JOG_330G_PIAT_wizualizacja-460x358.png | F83: Kubek 330g | G83: Tacka 12 szt. | H83: =IFERROR(Tabela1[[#This Row],[KART]]*Tabela1[[#This Row],[Kolumna4]],) -> 0 | I83: 1344 | J83: 112 | K83: 12 | L83: 0 | M83: 0 | N83: =IF(Tabela1[[#This Row],[Palet]]=0,0,IF(O83>0,O83*J83,)) ->  | Q83: 5900531003738 | R83: A
B84: =SUBTOTAL(103,$C$13:C84) -> 62 | C84: 107009 | D84: Jogurt Grecki Naturalny 0% | E84: https://piatnica.com.pl/content/uploads/2020/11/10965-0_NAT-GREC-150G-PIAT_wizualizacja-460x358.png | F84: Kubek 150g | G84: Tacka 12 szt. | H84: =IFERROR(Tabela1[[#This Row],[KART]]*Tabela1[[#This Row],[Kolumna4]],) -> 0 | I84: 2400 | J84: 200 | K84: 12 | L84: 0 | M84: 0 | N84: =IF(Tabela1[[#This Row],[Palet]]=0,0,IF(O84>0,O84*J84,)) ->  | Q84: 5900531003103 | R84: A
B85: =SUBTOTAL(103,$C$13:C85) -> 62 | C85: 107107 | D85: Jogurt Grecki Truskawka | F85: Kubek 150g | G85: Tacka 12 szt. | H85: =IFERROR(Tabela1[[#This Row],[KART]]*Tabela1[[#This Row],[Kolumna4]],) -> 0 | I85: 2304 | J85: 200 | K85: 12 | L85: =IF(ISERROR(H85/K85),,H85/K85) -> 0 | M85: =IF(ISERROR(H85/I85),,H85/I85) -> 0 | N85: =IF(Tabela1[[#This Row],[Palet]]=0,0,IF(O85>0,O85*J85,)) ->  | Q85: 5900531003202 | R85: N
B86: =SUBTOTAL(103,$C$13:C86) -> 62 | C86: 107108 | D86: Jogurt Grecki Brzoskwinia | F86: Kubek 150g | G86: Tacka 12 szt. | H86: =IFERROR(Tabela1[[#This Row],[KART]]*Tabela1[[#This Row],[Kolumna4]],) -> 0 | I86: 2304 | J86: 200 | K86: 12 | L86: 0 | M86: 0 | N86: =IF(Tabela1[[#This Row],[Palet]]=0,0,IF(O86>0,O86*J86,)) ->  | Q86: 5900531003608 | R86: N
B87: =SUBTOTAL(103,$C$13:C87) -> 62 | C87: 107106 | D87: Jogurt Grecki Wiśnia | F87: Kubek 150g | G87: Tacka 12 szt. | H87: =IFERROR(Tabela1[[#This Row],[KART]]*Tabela1[[#This Row],[Kolumna4]],) -> 0 | I87: 2304 | J87: 200 | K87: 12 | L87: 0 | M87: 0 | N87: =IF(Tabela1[[#This Row],[Palet]]=0,0,IF(O87>0,O87*J87,)) ->  | Q87: 5900531003615 | R87: N
B88: =SUBTOTAL(103,$C$13:C88) -> 62 | C88: 107110 | D88: Jogurt Grecki Jagoda | F88: Kubek 150g | G88: Tacka 12 szt. | H88: =IFERROR(Tabela1[[#This Row],[KART]]*Tabela1[[#This Row],[Kolumna4]],) -> 0 | I88: 2304 | J88: 200 | K88: 12 | L88: 0 | M88: 0 | N88: =IF(Tabela1[[#This Row],[Palet]]=0,0,IF(O88>0,O88*J88,)) ->  | Q88: 5900531003400 | R88: N
B89: =SUBTOTAL(103,$C$13:C89) -> 62 | C89: 107111 | D89: Jogurt Grecki Malina | F89: Kubek 150g | G89: Tacka 12 szt. | H89: =IFERROR(Tabela1[[#This Row],[KART]]*Tabela1[[#This Row],[Kolumna4]],) -> 0 | I89: 2304 | J89: 200 | K89: 12 | L89: 0 | M89: 0 | N89: =IF(Tabela1[[#This Row],[Palet]]=0,0,IF(O89>0,O89*J89,)) ->  | O89: =IF(N89>0,N89/J89,"-") ->  | Q89: 5900531003301 | R89: N
B90: =SUBTOTAL(103,$C$13:C90) -> 62 | C90: 107112 | D90: Jogurt Grecki Gruszka | F90: Kubek 150g | G90: Tacka 12 szt. | H90: =IFERROR(Tabela1[[#This Row],[KART]]*Tabela1[[#This Row],[Kolumna4]],) -> 0 | I90: 2304 | J90: 200 | K90: 12 | L90: 0 | M90: 0 | N90: =IF(Tabela1[[#This Row],[Palet]]=0,0,IF(O90>0,O90*J90,)) ->  | Q90: 5900531003509 | R90: N
B91: =SUBTOTAL(103,$C$13:C91) -> 63 | C91: 107051 | D91: Jogurt SYR naturalny150g | E91: https://piatnica.com.pl/content/uploads/2020/11/skyr-naturalny-packshot-16-12-2020-5174-460x307.png | F91: Kubek 150g | G91: Tacka 12 szt. | H91: =IFERROR(Tabela1[[#This Row],[KART]]*Tabela1[[#This Row],[Kolumna4]],) -> 0 | I91: 2400 | J91: 200 | K91: 12 | L91: 0 | M91: 0 | N91: =IF(Tabela1[[#This Row],[Palet]]=0,0,IF(O91>0,O91*J91,)) ->  | Q91: 5900531004544 | R91: A
B92: =SUBTOTAL(103,$C$13:C92) -> 64 | C92: 107052 | D92: Jogurt SYR z truskawkami 150g | E92: https://piatnica.com.pl/content/uploads/2020/11/skyr-truskawkowy-packshot-16-12-2020-5174-460x307.png | F92: Kubek 150g | G92: Tacka 12 szt. | H92: =IFERROR(Tabela1[[#This Row],[KART]]*Tabela1[[#This Row],[Kolumna4]],) -> 0 | I92: 2400 | J92: 200 | K92: 12 | L92: 0 | M92: 0 | N92: =IF(Tabela1[[#This Row],[Palet]]=0,0,IF(O92>0,O92*J92,)) ->  | Q92: 5900531004506 | R92: A
B93: =SUBTOTAL(103,$C$13:C93) -> 65 | C93: 107053 | D93: Jogurt SYR z jagodami 150g | E93: https://piatnica.com.pl/content/uploads/2020/11/skyr-jagody-packshot-16-12-2020-5174-460x307.png | F93: Kubek 150g | G93: Tacka 12 szt. | H93: =IFERROR(Tabela1[[#This Row],[KART]]*Tabela1[[#This Row],[Kolumna4]],) -> 0 | I93: 2400 | J93: 200 | K93: 12 | L93: 0 | M93: 0 | N93: =IF(Tabela1[[#This Row],[Palet]]=0,0,IF(O93>0,O93*J93,)) ->  | Q93: 5900531004513 | R93: A
B94: =SUBTOTAL(103,$C$13:C94) -> 65 | C94: 107054 | D94: Jogurt SYR z brzoskwiniami 150g | F94: Kubek 150g | G94: Tacka 12 szt. | H94: =IFERROR(Tabela1[[#This Row],[KART]]*Tabela1[[#This Row],[Kolumna4]],) -> 0 | I94: 2400 | J94: 200 | K94: 12 | L94: 0 | M94: 0 | N94: =IF(Tabela1[[#This Row],[Palet]]=0,0,IF(O94>0,O94*J94,)) ->  | Q94: 5900531004520 | R94: N
B95: =SUBTOTAL(103,$C$13:C95) -> 66 | C95: 107055 | D95: Jogurt SYR waniliowy 150g | E95: https://piatnica.com.pl/content/uploads/2020/11/skyr-waniliowy-packshot-16-12-2020-5174-460x307.png | F95: Kubek 150g | G95: Tacka 12 szt. | H95: =IFERROR(Tabela1[[#This Row],[KART]]*Tabela1[[#This Row],[Kolumna4]],) -> 0 | I95: 2400 | J95: 200 | K95: 12 | L95: =IF(ISERROR(H95/K95),,H95/K95) -> 0 | M95: =IF(ISERROR(H95/I95),,H95/I95) -> 0 | N95: =IF(Tabela1[[#This Row],[Palet]]=0,0,IF(O95>0,O95*J95,)) ->  | Q95: 5900531004537 | R95: A
B96: =SUBTOTAL(103,$C$13:C96) -> 67 | C96: 107121 | D96: Jogurt SKYR z Mango 150g | E96: https://piatnica.com.pl/content/uploads/2022/09/17219-SKYR-mango-marakuja-1-460x307.png | F96: Kubek 150g | G96: Tacka 12 szt. | H96: =IFERROR(Tabela1[[#This Row],[KART]]*Tabela1[[#This Row],[Kolumna4]],) -> 0 | I96: 2400 | J96: 200 | K96: 12 | L96: 0 | M96: 0 | N96: =IF(Tabela1[[#This Row],[Palet]]=0,0,IF(O96>0,O96*J96,)) ->  | Q96: 5900531004704 | R96: A
B97: =SUBTOTAL(103,$C$13:C97) -> 68 | C97: 107662 | D97: Jogurt SKYR czekolada z wiśniami 150g | E97: https://piatnica.com.pl/content/uploads/2025/01/11973-SKYR-CZEK-WIS-150G-PIAT_wizualizacja-460x460.png | F97: Kubek 150g | G97: Tacka 12 szt. | H97: =IFERROR(Tabela1[[#This Row],[KART]]*Tabela1[[#This Row],[Kolumna4]],) -> 0 | I97: 2400 | J97: 200 | K97: 12 | L97: =IF(ISERROR(H97/K97),,H97/K97) -> 0 | M97: =IF(ISERROR(H97/I97),,H97/I97) -> 0 | N97: =IF(Tabela1[[#This Row],[Palet]]=0,0,IF(O97>0,O97*J97,)) ->  | O97: =IF(N97>0,N97/J97,"-") ->  | Q97: 5900531004827 | R97: A
B98: =SUBTOTAL(103,$C$13:C98) -> 69 | C98: 107663 | D98: Jogurt SKYR TIRAMISU 150G | E98: https://piatnica.com.pl/content/uploads/2025/01/11973_SKYR-TIRAMISU-150G-PIAT_wizualizacja-460x460.png | F98: Kubek 150g | G98: Tacka 12 szt. | H98: =IFERROR(Tabela1[[#This Row],[KART]]*Tabela1[[#This Row],[Kolumna4]],) -> 0 | I98: 2400 | J98: 200 | K98: 12 | L98: 0 | M98: 0 | N98: =IF(Tabela1[[#This Row],[Palet]]=0,0,IF(O98>0,O98*J98,)) ->  | Q98: 5900531004834 | R98: A
B99: =SUBTOTAL(103,$C$13:C99) -> 70 | C99: 107124 | D99: Jogurt SKYR pomarańcza straciatella 150G | E99: https://piatnica.com.pl/content/uploads/2025/01/11973-SKYR-POMAR-150G-PIAT_wizualizacja-460x460.png | F99: Kubek 150g | G99: Tacka 12 szt. | H99: =IFERROR(Tabela1[[#This Row],[KART]]*Tabela1[[#This Row],[Kolumna4]],) -> 0 | I99: 2400 | J99: 200 | K99: 12 | L99: 0 | M99: 0 | N99: =IF(Tabela1[[#This Row],[Palet]]=0,0,IF(O99>0,O99*J99,)) ->  | Q99: 5900531004766 | R99: A
B100: =SUBTOTAL(103,$C$13:C100) -> 71 | C100: 107082 | D100: SKYR NATURALNY 450G | E100: https://piatnica.com.pl/content/uploads/2023/09/12742_SKYR-NATURA-450G-PIAT_wizualizacja-368x460.png | F100: Kubek 450g | G100: Tacka 6 szt. | H100: =IFERROR(Tabela1[[#This Row],[KART]]*Tabela1[[#This Row],[Kolumna4]],) -> 0 | I100: 780 | J100: 130 | K100: 6 | L100: =IF(ISERROR(H100/K100),,H100/K100) -> 0 | M100: =IF(ISERROR(H100/I100),,H100/I100) -> 0 | N100: =IF(Tabela1[[#This Row],[Palet]]=0,0,IF(O100>0,O100*J100,)) ->  | O100: =IF(N100>0,N100/J100,"-") ->  | Q100: 5900531004735 | R100: A
B101: =SUBTOTAL(103,$C$13:C101) -> 72 | C101: 107083 | D101: SKYR WANILIOWY 450G | E101: https://piatnica.com.pl/content/uploads/2023/09/12742_SKYR-WANILIA-450G-PIAT_wizualizacja-368x460.png | F101: Kubek 450g | G101: Tacka 6 szt. | H101: =IFERROR(Tabela1[[#This Row],[KART]]*Tabela1[[#This Row],[Kolumna4]],) -> 0 | I101: 780 | J101: 130 | K101: 6 | L101: 0 | M101: 0 | N101: =IF(Tabela1[[#This Row],[Palet]]=0,0,IF(O101>0,O101*J101,)) ->  | Q101: 5900531004742 | R101: A
B102: =SUBTOTAL(103,$C$13:C102) -> 72 | C102: 107086 | D102: Jogurt KETO 150g | E102: https://piatnica.com.pl/content/uploads/2024/06/KETO-460x358.png | F102: Kubek 150g | G102: Tacka 12 szt. | H102: =IFERROR(Tabela1[[#This Row],[KART]]*Tabela1[[#This Row],[Kolumna4]],) -> 0 | I102: 2400 | J102: 200 | K102: 12 | L102: =IF(ISERROR(H102/K102),,H102/K102) -> 0 | M102: =IF(ISERROR(H102/I102),,H102/I102) -> 0 | N102: =IF(Tabela1[[#This Row],[Palet]]=0,0,IF(O102>0,O102*J102,)) ->  | Q102: 5900531004971 | R102: N
B103: =SUBTOTAL(103,$C$13:C103) -> 72 | C103: 109113 | D103: Serek Piątuś malinowy | E103: https://piatnica.com.pl/content/uploads/2020/11/Piatus_malinowy_125_g-8-1-460x358.png | F103: Kubek 125g | G103: Tacka 20 szt. | H103: =IFERROR(Tabela1[[#This Row],[KART]]*Tabela1[[#This Row],[Kolumna4]],) -> 0 | I103: 4000 | J103: 200 | K103: 20 | L103: 0 | M103: 0 | N103: =IF(Tabela1[[#This Row],[Palet]]=0,0,IF(O103>0,O103*J103,)) ->  | Q103: 5900531004292 | R103: N
B104: =SUBTOTAL(103,$C$13:C104) -> 72 | C104: 109114 | D104: Serek Piątuś waniliowy | E104: https://piatnica.com.pl/content/uploads/2020/11/Piatus_waniliowy_125_g-8-1-460x358.png | F104: Kubek 125g | G104: Tacka 20 szt. | H104: =IFERROR(Tabela1[[#This Row],[KART]]*Tabela1[[#This Row],[Kolumna4]],) -> 0 | I104: 4000 | J104: 200 | K104: 20 | L104: 0 | M104: 0 | N104: =IF(Tabela1[[#This Row],[Palet]]=0,0,IF(O104>0,O104*J104,)) ->  | Q104: 5900531003639 | R104: N
B105: =SUBTOTAL(103,$C$13:C105) -> 72 | C105: 109115 | D105: Serek Piątuś bananowy | E105: https://piatnica.com.pl/content/uploads/2020/11/Piatus_bananowy_125_g-8-1-460x358.png | F105: Kubek 125g | G105: Tacka 20 szt. | H105: =IFERROR(Tabela1[[#This Row],[KART]]*Tabela1[[#This Row],[Kolumna4]],) -> 0 | I105: 4000 | J105: 200 | K105: 20 | L105: 0 | M105: 0 | N105: =IF(Tabela1[[#This Row],[Palet]]=0,0,IF(O105>0,O105*J105,)) ->  | Q105: 5900531003646 | R105: N
B106: =SUBTOTAL(103,$C$13:C106) -> 72 | C106: 109116 | D106: Serek Piątuś truskawkowy | E106: https://piatnica.com.pl/content/uploads/2020/11/Piatus_truskawkowy_125_g-8-1-460x358.png | F106: Kubek 125g | G106: Tacka 20 szt. | H106: =IFERROR(Tabela1[[#This Row],[KART]]*Tabela1[[#This Row],[Kolumna4]],) -> 0 | I106: 4000 | J106: 200 | K106: 20 | L106: 0 | M106: 0 | N106: =IF(Tabela1[[#This Row],[Palet]]=0,0,IF(O106>0,O106*J106,)) ->  | Q106: 5900531003622 | R106: N
B107: =SUBTOTAL(103,$C$13:C107) -> 72 | C107: 107117 | D107: Jogurt Piątuś jagodowy | F107: Kubek 125g | G107: Tacka 20 szt. | H107: =IFERROR(Tabela1[[#This Row],[KART]]*Tabela1[[#This Row],[Kolumna4]],) -> 0 | I107: 3200 | J107: 160 | K107: 20 | L107: 0 | M107: 0 | N107: =IF(Tabela1[[#This Row],[Palet]]=0,0,IF(O107>0,O107*J107,)) ->  | Q107: 5900531004315 | R107: N
B108: =SUBTOTAL(103,$C$13:C108) -> 73 | C108: 664019 | D108: SKYR PITNY 1L | E108: https://piatnica.com.pl/content/uploads/2020/11/k_mleko1l_2_0_2021_03_01-2-460x358.png | F108: Butelka 1L | G108: Zgrzewka 6 szt. | H108: =IFERROR(Tabela1[[#This Row],[KART]]*Tabela1[[#This Row],[Kolumna4]],) -> 0 | I108: 630 | J108: 105 | K108: 6 | L108: =IF(ISERROR(H108/K108),,H108/K108) -> 0 | M108: =IF(ISERROR(H108/I108),,H108/I108) -> 0 | N108: =IF(Tabela1[[#This Row],[Palet]]=0,0,IF(O108>0,O108*J108,)) ->  | O108: =IF(N108>0,N108/J108,"-") ->  | Q108: 5901939103273 | R108: A
B109: =SUBTOTAL(103,$C$13:C109) -> 74 | C109: 664010 | D109: SKYR PITNY NATURALNY 330 ml | E109: https://piatnica.com.pl/content/uploads/2020/11/piatnica-z-gory-skyr-naturalny-packshot-16-12-20205001-307x460.png | F109: Butelka 330ml | G109: Zgrzewka 12 szt. | H109: =IFERROR(Tabela1[[#This Row],[KART]]*Tabela1[[#This Row],[Kolumna4]],) -> 0 | I109: 1764 | J109: 147 | K109: 12 | L109: 0 | M109: 0 | N109: =IF(Tabela1[[#This Row],[Palet]]=0,0,IF(O109>0,O109*J109,)) ->  | Q109: 5901939103105 | R109: A
B110: =SUBTOTAL(103,$C$13:C110) -> 75 | C110: 664011 | D110: SKYR PITNY MANGO & MARAKUJA 330 ml | E110: https://piatnica.com.pl/content/uploads/2020/11/piatnica-z-gory-skyr-marakuja-packshot-16-12-20205001-307x460.png | F110: Butelka 330ml | G110: Zgrzewka 12 szt. | H110: =IFERROR(Tabela1[[#This Row],[KART]]*Tabela1[[#This Row],[Kolumna4]],) -> 0 | I110: 1764 | J110: 147 | K110: 12 | L110: 0 | M110: 0 | N110: =IF(Tabela1[[#This Row],[Palet]]=0,0,IF(O110>0,O110*J110,)) ->  | Q110: 5901939103068 | R110: A
B111: =SUBTOTAL(103,$C$13:C111) -> 76 | C111: 664012 | D111: SKYR PITNY WANILIA 330 ml | E111: https://piatnica.com.pl/content/uploads/2020/11/piatnica-z-gory-skyr-waniliowy-packshot-16-12-20205001-307x460.png | F111: Butelka 330ml | G111: Zgrzewka 12 szt. | H111: =IFERROR(Tabela1[[#This Row],[KART]]*Tabela1[[#This Row],[Kolumna4]],) -> 0 | I111: 1764 | J111: 147 | K111: 12 | L111: 0 | M111: 0 | N111: =IF(Tabela1[[#This Row],[Palet]]=0,0,IF(O111>0,O111*J111,)) ->  | Q111: 5901939103075 | R111: A
B112: =SUBTOTAL(103,$C$13:C112) -> 76 | C112: 664013 | D112: SKYR PITNY TRUSKAWKA 330 ml | F112: Butelka 330ml | G112: Zgrzewka 12 szt. | H112: =IFERROR(Tabela1[[#This Row],[KART]]*Tabela1[[#This Row],[Kolumna4]],) -> 0 | I112: 1764 | J112: 147 | K112: 12 | L112: 0 | M112: 0 | N112: =IF(Tabela1[[#This Row],[Palet]]=0,0,IF(O112>0,O112*J112,)) ->  | Q112: 5901939103082 | R112: N
B113: =SUBTOTAL(103,$C$13:C113) -> 77 | C113: 664014 | D113: SKYR PITNY JAGODA 330 ml | E113: https://piatnica.com.pl/content/uploads/2020/11/piatnica-z-gory-skyr-jagodowy-packshot-16-12-20205001-307x460.png | F113: Butelka 330ml | G113: Zgrzewka 12 szt. | H113: =IFERROR(Tabela1[[#This Row],[KART]]*Tabela1[[#This Row],[Kolumna4]],) -> 0 | I113: 1764 | J113: 147 | K113: 12 | L113: 0 | M113: 0 | N113: =IF(Tabela1[[#This Row],[Palet]]=0,0,IF(O113>0,O113*J113,)) ->  | Q113: 5901939103099 | R113: A
B114: =SUBTOTAL(103,$C$13:C114) -> 78 | C114: 664015 | D114: SKYR PITNY TRUSKAWKA KIWI 330 ml | E114: https://piatnica.com.pl/content/uploads/2020/11/piatnica-z-gory-skyr-kiwi-packshot-16-12-20205001-307x460.png | F114: Butelka 330ml | G114: Zgrzewka 12 szt. | H114: =IFERROR(Tabela1[[#This Row],[KART]]*Tabela1[[#This Row],[Kolumna4]],) -> 0 | I114: 1764 | J114: 147 | K114: 12 | L114: 0 | M114: 0 | N114: =IF(Tabela1[[#This Row],[Palet]]=0,0,IF(O114>0,O114*J114,)) ->  | Q114: 5901939103235 | R114: A
B115: =SUBTOTAL(103,$C$13:C115) -> 79 | C115: 664021 | D115: SKYR PITNY WIŚNIA 330 ml | E115: https://piatnica.com.pl/content/uploads/2024/09/Skyr-pitny-wisnia-1-307x460.png | F115: Butelka 330ml | G115: Zgrzewka 12 szt. | H115: =IFERROR(Tabela1[[#This Row],[KART]]*Tabela1[[#This Row],[Kolumna4]],) -> 0 | I115: 1764 | J115: 147 | K115: 12 | L115: =IF(ISERROR(H115/K115),,H115/K115) -> 0 | M115: =IF(ISERROR(H115/I115),,H115/I115) -> 0 | N115: =IF(Tabela1[[#This Row],[Palet]]=0,0,IF(O115>0,O115*J115,)) ->  | O115: =IF(N115>0,N115/J115,"-") ->  | Q115: 5901939103402 | R115: A
B116: =SUBTOTAL(103,$C$13:C116) -> 80 | C116: 664018 | D116: SKYR PITNY LIMONKA MIĘTA 330 ml | E116: https://piatnica.com.pl/content/uploads/2025/01/limonka-z-nta-miety-330-ml-307x460.png | F116: Butelka 330ml | G116: Zgrzewka 12 szt. | H116: =IFERROR(Tabela1[[#This Row],[KART]]*Tabela1[[#This Row],[Kolumna4]],) -> 0 | I116: 1764 | J116: 147 | K116: 12 | L116: 0 | M116: 0 | N116: =IF(Tabela1[[#This Row],[Palet]]=0,0,IF(O116>0,O116*J116,)) ->  | Q116: 5901939103389 | R116: A
B117: =SUBTOTAL(103,$C$13:C117) -> 81 | C117: 664026 | D117: SKYR PITNY KOKOS ANANAS 330 ml | E117: https://piatnica.com.pl/content/uploads/2024/09/Skyr-pitny-kokos-ananas-1-307x460.png | F117: Butelka 330ml | G117: Zgrzewka 12 szt. | H117: =IFERROR(Tabela1[[#This Row],[KART]]*Tabela1[[#This Row],[Kolumna4]],) -> 0 | I117: 1764 | J117: 147 | K117: 12 | L117: 0 | M117: 0 | N117: =IF(Tabela1[[#This Row],[Palet]]=0,0,IF(O117>0,O117*J117,)) ->  | Q117: 5901939103419 | R117: A
B118: =SUBTOTAL(103,$C$13:C118) -> 82 | C118: 664027 | D118: SKYR PITNY NEKTARYNKA MALINA 330 ml | E118: https://piatnica.com.pl/content/uploads/2024/09/Skyr-pitny-nekarynka-malina-307x460.png | F118: Butelka 330ml | G118: Zgrzewka 12 szt. | H118: =IFERROR(Tabela1[[#This Row],[KART]]*Tabela1[[#This Row],[Kolumna4]],) -> 0 | I118: 1764 | J118: 147 | K118: 12 | L118: 0 | M118: 0 | N118: =IF(Tabela1[[#This Row],[Palet]]=0,0,IF(O118>0,O118*J118,)) ->  | Q118: 5901939103372 | R118: A
B119: =SUBTOTAL(103,$C$13:C119) -> 83 | C119: 664025 | D119: SKYR PITNY WANILIA - STRACIATELLA 330 ml | F119: Butelka 330ml | G119: Zgrzewka 12 szt. | H119: =IFERROR(Tabela1[[#This Row],[KART]]*Tabela1[[#This Row],[Kolumna4]],) -> 0 | I119: 1764 | J119: 147 | K119: 12 | L119: =IF(ISERROR(H119/K119),,H119/K119) -> 0 | M119: =IF(ISERROR(H119/I119),,H119/I119) -> 0 | N119: =IF(Tabela1[[#This Row],[Palet]]=0,0,IF(O119>0,O119*J119,)) ->  | O119: =IF(N119>0,N119/J119,"-") ->  | Q119: 5901939103334 | R119: A
B120: =SUBTOTAL(103,$C$13:C120) -> 84 | C120: 668010 | D120: Mleko Wiejskie 2% | E120: https://piatnica.com.pl/content/uploads/2020/11/k_mleko1l_2_0_2021_03_01-2-460x358.png | F120: Butelka 1L | G120: Zgrzewka 6 szt. | H120: =IFERROR(Tabela1[[#This Row],[KART]]*Tabela1[[#This Row],[Kolumna4]],) -> 0 | I120: 630 | J120: 105 | K120: 6 | L120: 0 | M120: 0 | N120: =IF(Tabela1[[#This Row],[Palet]]=0,0,IF(O120>0,O120*J120,)) ->  | Q120: 5901939000770 | R120: A
B121: =SUBTOTAL(103,$C$13:C121) -> 85 | C121: 668011 | D121: Mleko Wiejskie 3,2% | E121: https://piatnica.com.pl/content/uploads/2020/11/k_mleko1l_3_2_2021_03_01-1-460x358.png | F121: Butelka 1L | G121: Zgrzewka 6 szt. | H121: =IFERROR(Tabela1[[#This Row],[KART]]*Tabela1[[#This Row],[Kolumna4]],) -> 0 | I121: 630 | J121: 105 | K121: 6 | L121: 0 | M121: 0 | N121: =IF(Tabela1[[#This Row],[Palet]]=0,0,IF(O121>0,O121*J121,)) ->  | Q121: 5901939000794 | R121: A
B122: =SUBTOTAL(103,$C$13:C122) -> 86 | C122: 668015 | D122: Mleko do Kawy | E122: https://piatnica.com.pl/content/uploads/2023/03/Mleko_500ml_bok-460x358.png | F122: Butelka 0,5L | G122: Zgrzewka 6 szt. | H122: =IFERROR(Tabela1[[#This Row],[KART]]*Tabela1[[#This Row],[Kolumna4]],) -> 0 | I122: =Tabela1[[#This Row],[Kolumna3]]*6 -> 1056 | J122: 176 | K122: 6 | L122: =IF(ISERROR(H122/K122),,H122/K122) -> 0 | M122: =IF(ISERROR(H122/I122),,H122/I122) -> 0 | N122: =IF(Tabela1[[#This Row],[Palet]]=0,0,IF(O122>0,O122*J122,)) ->  | O122: =IF(N122>0,N122/J122,"-") ->  | Q122: 5901939002323 | R122: A
B123: =SUBTOTAL(103,$C$13:C123) -> 87 | C123: 668012 | D123: Mleko BIO | E123: https://piatnica.com.pl/content/uploads/2020/11/Mleko_ekologiczne_BIO_1_l-460x358.png | F123: Butelka 1L | G123: Zgrzewka 6 szt. | H123: =IFERROR(Tabela1[[#This Row],[KART]]*Tabela1[[#This Row],[Kolumna4]],) -> 0 | I123: 630 | J123: 105 | K123: 6 | L123: 0 | M123: 0 | N123: =IF(Tabela1[[#This Row],[Palet]]=0,0,IF(O123>0,O123*J123,)) ->  | Q123: 5901939002002 | R123: A
B124: =SUBTOTAL(103,$C$13:C124) -> 88 | C124: 668013 | D124: Wiejskie BEZ LAKTOZY 2% | E124: https://piatnica.com.pl/content/uploads/2020/11/mleko-4-460x358.png | F124: Butelka 1L | G124: Zgrzewka 6 szt. | H124: =IFERROR(Tabela1[[#This Row],[KART]]*Tabela1[[#This Row],[Kolumna4]],) -> 0 | I124: 630 | J124: 105 | K124: 6 | L124: 0 | M124: 0 | N124: =IF(Tabela1[[#This Row],[Palet]]=0,0,IF(O124>0,O124*J124,)) ->  | Q124: 5901939002019 | R124: A
B125: =SUBTOTAL(103,$C$13:C125) -> 88 | C125: 663001 | D125: Mleko UHT 2% | F125: Butelka 1L | G125: Zgrzewka 6 szt. | H125: =IFERROR(Tabela1[[#This Row],[KART]]*Tabela1[[#This Row],[Kolumna4]],) -> 0 | I125: 630 | J125: 105 | K125: 12 | L125: 0 | M125: 0 | N125: =IF(Tabela1[[#This Row],[Palet]]=0,0,IF(O125>0,O125*J125,)) ->  | Q125: 5901939004082 | R125: N
B126: =SUBTOTAL(103,$C$13:C126) -> 88 | C126: 663002 | D126: Mleko UHT 3,2% | F126: Butelka 1L | G126: Zgrzewka 6 szt. | H126: =IFERROR(Tabela1[[#This Row],[KART]]*Tabela1[[#This Row],[Kolumna4]],) -> 0 | I126: 630 | J126: 105 | K126: 12 | L126: 0 | M126: 0 | N126: =IF(Tabela1[[#This Row],[Palet]]=0,0,IF(O126>0,O126*J126,)) ->  | Q126: 5901939004099 | R126: N
B127: =SUBTOTAL(103,$C$13:C127) -> 88 | C127: 663021 | D127: MLEKO BIO UHT 2,5% 1l | F127: Butelka 1L | G127: Zgrzewka 6 szt. | H127: =IFERROR(Tabela1[[#This Row],[KART]]*Tabela1[[#This Row],[Kolumna4]],) -> 0 | I127: 630 | J127: 105 | K127: 12 | L127: 0 | M127: 0 | N127: =IF(Tabela1[[#This Row],[Palet]]=0,0,IF(O127>0,O127*J127,)) ->  | Q127: 5901939004112 | R127: N
B128: =SUBTOTAL(103,$C$13:C128) -> 88 | C128: 663022 | D128: BEZ LAKTOZY UHT 1,5% 1l | F128: Butelka 1L | G128: Zgrzewka 6 szt. | H128: =IFERROR(Tabela1[[#This Row],[KART]]*Tabela1[[#This Row],[Kolumna4]],) -> 0 | I128: 630 | J128: 105 | K128: 12 | L128: 0 | M128: 0 | N128: =IF(Tabela1[[#This Row],[Palet]]=0,0,IF(O128>0,O128*J128,)) ->  | Q128: 5901939004105 | R128: N
B129: =SUBTOTAL(103,$C$13:C129) -> 88 | C129: 663028 | D129: MLEKO UHT DO KAWY 3,2% 1L | F129: Butelka 1L | G129: Zgrzewka 6 szt. | H129: =IFERROR(Tabela1[[#This Row],[KART]]*Tabela1[[#This Row],[Kolumna4]],) -> 0 | I129: 630 | J129: 105 | K129: 6 | L129: 0 | M129: 0 | N129: =IF(Tabela1[[#This Row],[Palet]]=0,0,IF(O129>0,O129*J129,)) ->  | Q129: 5901939004181 | R129: N
B130: =SUBTOTAL(103,$C$13:C130) -> 88 | C130: 663004 | D130: Mleko czekoladowe 330ml | F130: Butelka 330ml | G130: Zgrzewka 12 szt. | H130: =IFERROR(Tabela1[[#This Row],[KART]]*Tabela1[[#This Row],[Kolumna4]],) -> 0 | I130: 2016 | J130: 168 | K130: 12 | L130: 0 | M130: 0 | N130: =IF(Tabela1[[#This Row],[Palet]]=0,0,IF(O130>0,O130*J130,)) ->  | Q130: 5901939003016 | R130: N
B131: =SUBTOTAL(103,$C$13:C131) -> 88 | C131: 663005 | D131: Mleko waniliowe 330ml | F131: Butelka 330ml | G131: Zgrzewka 12 szt. | H131: =IFERROR(Tabela1[[#This Row],[KART]]*Tabela1[[#This Row],[Kolumna4]],) -> 0 | I131: 2016 | J131: 168 | K131: 12 | L131: 0 | M131: 0 | N131: =IF(Tabela1[[#This Row],[Palet]]=0,0,IF(O131>0,O131*J131,)) ->  | Q131: 5901939003023 | R131: N
B132: =SUBTOTAL(103,$C$13:C132) -> 88 | C132: 663006 | D132: Mleko truskawkowe 330ml | F132: Butelka 330ml | G132: Zgrzewka 12 szt. | H132: =IFERROR(Tabela1[[#This Row],[KART]]*Tabela1[[#This Row],[Kolumna4]],) -> 0 | I132: 2016 | J132: 168 | K132: 12 | L132: 0 | M132: 0 | N132: =IF(Tabela1[[#This Row],[Palet]]=0,0,IF(O132>0,O132*J132,)) ->  | Q132: 5901939003030 | R132: N
B133: =SUBTOTAL(103,$C$13:C133) -> 88 | C133: 663007 | D133: Mleko bananowe 330ml | F133: Butelka 330ml | G133: Zgrzewka 12 szt. | H133: =IFERROR(Tabela1[[#This Row],[KART]]*Tabela1[[#This Row],[Kolumna4]],) -> 0 | I133: 2016 | J133: 168 | K133: 12 | L133: 0 | M133: 0 | N133: =IF(Tabela1[[#This Row],[Palet]]=0,0,IF(O133>0,O133*J133,)) ->  | Q133: 5901939003047 | R133: N
B134: =SUBTOTAL(103,$C$13:C134) -> 88 | C134: 663020 | D134: Mleko z Belgijską Czekoladą 330ml | F134: Butelka 330ml | G134: Zgrzewka 12 szt. | H134: =IFERROR(Tabela1[[#This Row],[KART]]*Tabela1[[#This Row],[Kolumna4]],) -> 0 | I134: 2016 | J134: 168 | K134: 12 | L134: 0 | M134: 0 | N134: =IF(Tabela1[[#This Row],[Palet]]=0,0,IF(O134>0,O134*J134,)) ->  | Q134: 5901939003207 | R134: N
B135: =SUBTOTAL(103,$C$13:C135) -> 88 | C135: 663021 | D135: Mleko kokosowo migdałowe 330ml | F135: Butelka 330ml | G135: Zgrzewka 12 szt. | H135: =IFERROR(Tabela1[[#This Row],[KART]]*Tabela1[[#This Row],[Kolumna4]],) -> 0 | I135: 630 | J135: 105 | K135: 12 | L135: 0 | M135: 0 | N135: =IF(Tabela1[[#This Row],[Palet]]=0,0,IF(O135>0,O135*J135,)) ->  | Q135: 5901939003214 | R135: N
B136: =SUBTOTAL(103,$C$13:C136) -> 88 | C136: 664020 | D136: Maslanka | F136: Butelka 1L | G136: Zgrzewka 6 szt. | H136: =IFERROR(Tabela1[[#This Row],[KART]]*Tabela1[[#This Row],[Kolumna4]],) -> 0 | I136: 630 | J136: 105 | K136: 6 | L136: 0 | M136: 0 | N136: =IF(Tabela1[[#This Row],[Palet]]=0,0,IF(O136>0,O136*J136,)) ->  | Q136: 5901939003009 | R136: N
B137: =SUBTOTAL(103,$C$13:C137) -> 89 | C137: 660020 | D137: Masło EXTRA | E137: https://piatnica.com.pl/content/uploads/2020/11/karta-produktu-maslo-460x358.png | F137: Kostka 200g | G137: Karton 30 szt. | H137: =IFERROR(Tabela1[[#This Row],[KART]]*Tabela1[[#This Row],[Kolumna4]],) -> 0 | I137: 3300 | J137: 110 | K137: 30 | L137: 0 | M137: 0 | N137: =IF(Tabela1[[#This Row],[Palet]]=0,0,IF(O137>0,O137*J137,)) ->  | Q137: 5901939030012 | R137: A
B138: =SUBTOTAL(103,$C$13:C138) -> 90 | C138: 660003 | D138: Śmietankowy SMAK z Ostrołęki | E138: https://piatnica.com.pl/content/uploads/2020/11/maslo-1-460x358.png | F138: Kostka 200g | G138: Karton 30 szt. | H138: =IFERROR(Tabela1[[#This Row],[KART]]*Tabela1[[#This Row],[Kolumna4]],) -> 0 | I138: 3300 | J138: 110 | K138: 30 | L138: 0 | M138: 0 | N138: =IF(Tabela1[[#This Row],[Palet]]=0,0,IF(O138>0,O138*J138,)) ->  | Q138: 5901939000404 | R138: A
B139: =SUBTOTAL(103,$C$13:C139) -> 91 | C139: 661001 | D139: KOKTAJL MANGO MARAKUJA | E139: https://piatnica.com.pl/content/uploads/2020/11/mango2-460x358.png | F139: Butelka 250g | G139: Zgrzewka 12 szt. | H139: =IFERROR(Tabela1[[#This Row],[KART]]*Tabela1[[#This Row],[Kolumna4]],) -> 0 | I139: 2304 | J139: 192 | K139: 12 | L139: 0 | M139: 0 | N139: =IF(Tabela1[[#This Row],[Palet]]=0,0,IF(O139>0,O139*J139,)) ->  | Q139: 5901939006031 | R139: A
B140: =SUBTOTAL(103,$C$13:C140) -> 92 | C140: 661002 | D140: KOKTAJL MALINA GRANAT | E140: https://piatnica.com.pl/content/uploads/2020/11/malina2-1-460x358.png | F140: Butelka 250g | G140: Zgrzewka 12 szt. | H140: =IFERROR(Tabela1[[#This Row],[KART]]*Tabela1[[#This Row],[Kolumna4]],) -> 0 | I140: 2304 | J140: 192 | K140: 12 | L140: =IF(ISERROR(H140/K140),,H140/K140) -> 0 | M140: =IF(ISERROR(H140/I140),,H140/I140) -> 0 | N140: =IF(Tabela1[[#This Row],[Palet]]=0,0,IF(O140>0,O140*J140,)) ->  | Q140: 5901939006017 | R140: A
B141: =SUBTOTAL(103,$C$13:C141) -> 93 | C141: 661004 | D141: KOKTAJL TRUSKAWKA BANAN | E141: https://piatnica.com.pl/content/uploads/2020/11/truskawka2-460x358.png | F141: Butelka 250g | G141: Zgrzewka 12 szt. | H141: =IFERROR(Tabela1[[#This Row],[KART]]*Tabela1[[#This Row],[Kolumna4]],) -> 0 | I141: 2304 | J141: 192 | K141: 12 | L141: 0 | M141: 0 | N141: =IF(Tabela1[[#This Row],[Palet]]=0,0,IF(O141>0,O141*J141,)) ->  | Q141: 5901939006048 | R141: A
B142: =SUBTOTAL(103,$C$13:C142) -> 94 | C142: 665003 | D142: PIATNICA ROSLINNA OWSIANA 1l | E142: https://piatnica.com.pl/content/uploads/2022/01/owsiane-1-460x358-1.png | F142: Butelka 1L | G142: Zgrzewka 6 szt. | H142: =IFERROR(Tabela1[[#This Row],[KART]]*Tabela1[[#This Row],[Kolumna4]],) -> 0 | I142: 630 | J142: 105 | K142: 6 | L142: 0 | M142: 0 | N142: =IF(Tabela1[[#This Row],[Palet]]=0,0,IF(O142>0,O142*J142,)) ->  | Q142: 5901939105000 | R142: A
B143: =SUBTOTAL(103,$C$13:C143) -> 94 | C143: 665004 | D143: PIATNICA ROSLINNA SOJOWA 1l | F143: Butelka 1L | G143: Zgrzewka 6 szt. | H143: =IFERROR(Tabela1[[#This Row],[KART]]*Tabela1[[#This Row],[Kolumna4]],) -> 0 | I143: 630 | J143: 105 | K143: 6 | L143: 0 | M143: 0 | N143: =IF(Tabela1[[#This Row],[Palet]]=0,0,IF(O143>0,O143*J143,)) ->  | O143: =IF(N143>0,N143/J143,"-") ->  | Q143: 5901939105062 | R143: N
B144: =SUBTOTAL(103,$C$13:C144) -> 94 | C144: 665005 | D144: PIATNICA ROSLINNA RYZOWA 1l | F144: Butelka 1L | G144: Zgrzewka 6 szt. | H144: =IFERROR(Tabela1[[#This Row],[KART]]*Tabela1[[#This Row],[Kolumna4]],) -> 0 | I144: 630 | J144: 105 | K144: 6 | L144: 0 | M144: 0 | N144: =IF(Tabela1[[#This Row],[Palet]]=0,0,IF(O144>0,O144*J144,)) ->  | O144: =IF(N144>0,N144/J144,"-") ->  | Q144: 5901939105024 | R144: N
B145: =SUBTOTAL(103,$C$13:C145) -> 95 | C145: 665006 | D145: PIATNICA ROSLINNA MIGDALOWA 1l | E145: https://piatnica.com.pl/content/uploads/2023/04/owsiane-1-460x358-2.png | F145: Butelka 1L | G145: Zgrzewka 6 szt. | H145: =IFERROR(Tabela1[[#This Row],[KART]]*Tabela1[[#This Row],[Kolumna4]],) -> 0 | I145: 630 | J145: 105 | K145: 6 | L145: 0 | M145: 0 | N145: =IF(Tabela1[[#This Row],[Palet]]=0,0,IF(O145>0,O145*J145,)) ->  | O145: =IF(N145>0,N145/J145,"-") ->  | Q145: 5901939105086 | R145: A
D146: Liczba zamówionych pozycji | G146: =COUNT(N13:N138) -> 0 | H146: =IFERROR(Tabela1[[#This Row],[KART]]*Tabela1[[#This Row],[Kolumna4]],) -> 0 | M146: =SUM(H13:H145) -> 0 | N146: =IF(Tabela1[[#This Row],[Palet]]=0,0,IF(O146>0,O146*J146,)) -> 0 | O146: =SUM(M13:M145) -> 0
H147: =IFERROR(Tabela1[[#This Row],[KART]]*Tabela1[[#This Row],[Kolumna4]],) -> 0 | N147: =IF(Tabela1[[#This Row],[Palet]]=0,0,IF(O147>0,O147*J147,)) -> 0
B148: ZAMÓWIENIE HoReCa | H148: =IFERROR(Tabela1[[#This Row],[KART]]*Tabela1[[#This Row],[Kolumna4]],) -> 0 | N148: =IF(Tabela1[[#This Row],[Palet]]=0,0,IF(O148>0,O148*J148,)) -> 0
H149: =IFERROR(Tabela1[[#This Row],[KART]]*Tabela1[[#This Row],[Kolumna4]],) -> 0 | N149: =IF(Tabela1[[#This Row],[Palet]]=0,0,IF(O149>0,O149*J149,)) -> 0
B150: =SUBTOTAL(103,$C$150:C150)+$B$142 -> 95 | C150: 104532 | D150: Twój Smak HoReCa 1kg | E150: https://piatnica.com.pl/content/uploads/2020/11/Serek_Twoj_Smak_naturalny_1_kg-460x358.png | F150: Wiaderko 1kg | G150: Karton 6 szt. | H150: =IFERROR(Tabela1[[#This Row],[KART]]*Tabela1[[#This Row],[Kolumna4]],) -> 0 | I150: 594 | J150: 99 | K150: 6 | L150: =IF(ISERROR(H150/K150),,H150/K150) -> 0 | M150: =IF(ISERROR(H150/I150),,H150/I150) -> 0 | N150: =IF(Tabela1[[#This Row],[Palet]]=0,0,IF(O150>0,O150*J150,)) ->  | O150: =IF(N150>0,N150/J150,"-") ->  | Q150: 5900531000904 | R150: A
B151: =SUBTOTAL(103,$C$150:C151)+$B$142 -> 96 | C151: 104561 | D151: Twój Smak do SUSHI 1kg | E151: https://piatnica.com.pl/content/uploads/2020/11/Serek_smietankowy_do_sushi_1_kg-1-460x358.png | F151: Wiaderko 1kg | G151: Karton 6 szt. | H151: =IFERROR(Tabela1[[#This Row],[KART]]*Tabela1[[#This Row],[Kolumna4]],) -> 0 | I151: 594 | J151: 99 | K151: 6 | L151: =IF(ISERROR(H151/K151),,H151/K151) -> 0 | M151: =IF(ISERROR(H151/I151),,H151/I151) -> 0 | N151: =IF(Tabela1[[#This Row],[Palet]]=0,0,IF(O151>0,O151*J151,)) ->  | Q151: 5900531000997 | R151: A
B152: =SUBTOTAL(103,$C$150:C152)+$B$142 -> 97 | C152: 104039 | D152: Serek kremowy 5kg | E152: https://piatnica.com.pl/content/uploads/2022/12/Serek-kremowy_5kg-460x358.png | F152: Wiaderko 5kg | H152: =IFERROR(Tabela1[[#This Row],[KART]]*Tabela1[[#This Row],[Kolumna4]],) -> 0 | I152: 60 | J152: 60 | K152: 1 | L152: =IF(ISERROR(H152/K152),,H152/K152) -> 0 | M152: =IF(ISERROR(H152/I152),,H152/I152) -> 0 | N152: =IF(Tabela1[[#This Row],[Palet]]=0,0,IF(O152>0,O152*J152,)) ->  | O152: =IF(N152>0,N152/J152,"-") ->  | Q152: 5900531001802 | R152: A
B153: =SUBTOTAL(103,$C$150:C153)+$B$142 -> 98 | C153: 104014 | D153: Twój Smak HoReCa 5kg | E153: https://piatnica.com.pl/content/uploads/2020/11/Twoj_smak_naturalny_5_kg-460x358.png | F153: Wiaderko 5kg | H153: =IFERROR(Tabela1[[#This Row],[KART]]*Tabela1[[#This Row],[Kolumna4]],) -> 0 | I153: 60 | J153: 60 | K153: 1 | L153: 0 | M153: 0 | N153: =IF(Tabela1[[#This Row],[Palet]]=0,0,IF(O153>0,O153*J153,)) ->  | Q153: 5900531001413 | R153: A
B154: =SUBTOTAL(103,$C$150:C154)+$B$142 -> 98 | C154: 104015 | D154: Twój Smak HoReCa 5kg | F154: Wiaderko 5kg | H154: =IFERROR(Tabela1[[#This Row],[KART]]*Tabela1[[#This Row],[Kolumna4]],) -> 0 | I154: 4320 | J154: 432 | K154: 12 | L154: 0 | M154: 0 | N154: =IF(Tabela1[[#This Row],[Palet]]=0,0,IF(O154>0,O154*J154,)) ->  | Q154: 0 | R154: N
B155: =SUBTOTAL(103,$C$150:C155)+$B$142 -> 99 | C155: 103055 | D155: Serek wiejski 3kg | E155: https://piatnica.com.pl/content/uploads/2020/11/serek-wiejski-3kg-460x358.png | F155: Wiaderko 3kg | H155: =IFERROR(Tabela1[[#This Row],[KART]]*Tabela1[[#This Row],[Kolumna4]],) -> 0 | I155: 100 | J155: 100 | K155: 1 | L155: 0 | M155: 0 | N155: =IF(Tabela1[[#This Row],[Palet]]=0,0,IF(O155>0,O155*J155,)) ->  | Q155: 5900531050022 | R155: A
B156: =SUBTOTAL(103,$C$150:C156)+$B$142 -> 100 | C156: 107050 | D156: Jogurt 2% HoReCa 1kg | E156: https://piatnica.com.pl/content/uploads/2020/11/10353_10359_NATUR-JOG-1KG-PIAT_wizualizacja_2160x1680px-358x460.png | F156: Wiaderko 1kg | G156: Tacka 6 szt. | H156: =IFERROR(Tabela1[[#This Row],[KART]]*Tabela1[[#This Row],[Kolumna4]],) -> 0 | I156: 594 | J156: 99 | K156: 6 | L156: 0 | M156: 0 | N156: =IF(Tabela1[[#This Row],[Palet]]=0,0,IF(O156>0,O156*J156,)) ->  | O156: =IF(N156>0,N156/J156,"-") ->  | Q156: 5900531001673 | R156: A
B157: =SUBTOTAL(103,$C$150:C157)+$B$142 -> 101 | C157: 107003 | D157: Jogurt 2% wiaderko | E157: https://piatnica.com.pl/content/uploads/2020/11/Jogurt_naturalny_2_10_l-460x358.png | F157: Wiaderko 5kg | I157: 60 | J157: 60 | K157: 1 | L157: 0 | M157: 0 | N157: =IF(Tabela1[[#This Row],[Palet]]=0,0,IF(O157>0,O157*J157,)) ->  | Q157: 5900531001642 | R157: A
B158: =SUBTOTAL(103,$C$150:C158)+$B$142 -> 102 | C158: 107081 | D158: Jogurt Truskawkowy 3kg | E158: https://piatnica.com.pl/content/uploads/2020/11/Jogurt_naturalny_2_10_l-460x358.png | F158: Wiaderko 3kg | I158: 100 | J158: 100 | K158: 1 | L158: =IF(ISERROR(H158/K158),,H158/K158) -> 0 | M158: =IF(ISERROR(H158/I158),,H158/I158) -> 0 | N158: =IF(Tabela1[[#This Row],[Palet]]=0,0,IF(O158>0,O158*J158,)) ->  | O158: =IF(N158>0,N158/J158,"-") ->  | Q158: 5900531008061 | R158: A
B159: =SUBTOTAL(103,$C$150:C159)+$B$142 -> 103 | C159: 107070 | D159: Jogurt naturalny100g | E159: https://piatnica.com.pl/content/uploads/2020/11/Jogurt-100g-naturalny-460x423.png | F159: Kubek 100g | G159: Tacka 20 szt. | H159: =IFERROR(Tabela1[[#This Row],[KART]]*Tabela1[[#This Row],[Kolumna4]],) -> 0 | I159: 4000 | J159: 200 | K159: 20 | L159: 0 | M159: 0 | N159: =IF(Tabela1[[#This Row],[Palet]]=0,0,IF(O159>0,O159*J159,)) ->  | Q159: 5900531008054 | R159: A
B160: =SUBTOTAL(103,$C$150:C160)+$B$142 -> 104 | C160: 107071 | D160: Jogurt owocowy MIX 20 x 100g | E160: https://piatnica.com.pl/content/uploads/2020/11/Jogurt-100g-truskawka-460x423.png | F160: Kubek 100g | G160: Tacka 20 szt. | H160: =IFERROR(Tabela1[[#This Row],[KART]]*Tabela1[[#This Row],[Kolumna4]],) -> 0 | I160: 200 | J160: 200 | K160: 1 | L160: 0 | M160: 0 | N160: =IF(Tabela1[[#This Row],[Palet]]=0,0,IF(O160>0,O160*J160,)) ->  | Q160: 5900531108990 | R160: A
B161: =SUBTOTAL(103,$C$150:C161)+$B$142 -> 105 | C161: 107063 | D161: JOGURT SKYR NATURALNY 0% 5kg | E161: https://piatnica.com.pl/content/uploads/2020/11/Twarog_sernikowy_5kg-460x358.png | F161: Wiaderko 5kg | H161: =IFERROR(Tabela1[[#This Row],[KART]]*Tabela1[[#This Row],[Kolumna4]],) -> 0 | I161: 60 | J161: 60 | K161: 1 | L161: =IF(ISERROR(H161/K161),,H161/K161) -> 0 | M161: =IF(ISERROR(H161/I161),,H161/I161) -> 0 | N161: =IF(Tabela1[[#This Row],[Palet]]=0,0,IF(O161>0,O161*J161,)) ->  | O161: =IF(N161>0,N161/J161,"-") ->  | Q161: 5900531004995 | R161: A
B162: =SUBTOTAL(103,$C$150:C162)+$B$142 -> 106 | C162: 106007 | D162: Mascarpone 5kg | E162: https://piatnica.com.pl/content/uploads/2020/11/Mascarpone_5_kg-1-460x358.png | F162: Wiaderko 5kg | H162: =IFERROR(Tabela1[[#This Row],[KART]]*Tabela1[[#This Row],[Kolumna4]],) -> 0 | I162: 60 | J162: 60 | K162: 1 | L162: 0 | M162: 0 | N162: =IF(Tabela1[[#This Row],[Palet]]=0,0,IF(O162>0,O162*J162,)) ->  | Q162: 5900531001482 | R162: A
B163: =SUBTOTAL(103,$C$150:C163)+$B$142 -> 107 | C163: 106011 | D163: Mascarpone 3kg | E163: https://piatnica.com.pl/content/uploads/2020/11/Mascarpone_3_kg-1-460x356.png | F163: Wiaderko 3kg | H163: =IFERROR(Tabela1[[#This Row],[KART]]*Tabela1[[#This Row],[Kolumna4]],) -> 0 | I163: 100 | J163: 100 | K163: 1 | L163: 0 | M163: 0 | N163: =IF(Tabela1[[#This Row],[Palet]]=0,0,IF(O163>0,O163*J163,)) ->  | Q163: 5900531001765 | R163: A
B164: =SUBTOTAL(103,$C$150:C164)+$B$142 -> 108 | C164: 105015 | D164: Twaróg Sernikowy 5kg | E164: https://piatnica.com.pl/content/uploads/2020/11/Twarog_sernikowy_5kg-460x358.png | F164: Wiaderko 5kg | H164: =IFERROR(Tabela1[[#This Row],[KART]]*Tabela1[[#This Row],[Kolumna4]],) -> 0 | I164: 60 | J164: 60 | K164: 1 | L164: 0 | M164: 0 | N164: =IF(Tabela1[[#This Row],[Palet]]=0,0,IF(O164>0,O164*J164,)) ->  | Q164: 5900531004186 | R164: A
B165: =SUBTOTAL(103,$C$150:C165)+$B$142 -> 109 | C165: 105014 | D165: Twaróg do wypieków 5kg | E165: https://piatnica.com.pl/content/uploads/2020/11/Twarog_sernikowy_5kg-460x358.png | F165: Wiaderko 5kg | H165: =IFERROR(Tabela1[[#This Row],[KART]]*Tabela1[[#This Row],[Kolumna4]],) -> 0 | I165: 60 | J165: 60 | K165: 1 | L165: =IF(ISERROR(H165/K165),,H165/K165) -> 0 | M165: =IF(ISERROR(H165/I165),,H165/I165) -> 0 | N165: =IF(Tabela1[[#This Row],[Palet]]=0,0,IF(O165>0,O165*J165,)) ->  | O165: =IF(N165>0,N165/J165,"-") ->  | Q165: 5900531004148 | R165: A
B166: =SUBTOTAL(103,$C$150:C166)+$B$142 -> 110 | C166: 102013 | D166: Śmietanka 12% wiaderka | E166: https://piatnica.com.pl/content/uploads/2020/11/Smietana_12_1_kg-1-460x358.png | F166: Wiaderko 10kg | H166: =IFERROR(Tabela1[[#This Row],[KART]]*Tabela1[[#This Row],[Kolumna4]],) -> 0 | I166: 360 | J166: 36 | K166: 10 | L166: 0 | M166: 0 | N166: =IF(Tabela1[[#This Row],[Palet]]=0,0,IF(O166>0,O166*J166,)) ->  | Q166: 5900531001321 | R166: A
B167: =SUBTOTAL(103,$C$150:C167)+$B$142 -> 111 | C167: 102503 | D167: Smietana 12% HoReCa 1kg | E167: https://piatnica.com.pl/content/uploads/2020/11/Smietana_12_1_kg-1-460x358.png | F167: Wiaderko 1kg | G167: Tacka 6 szt. | H167: =IFERROR(Tabela1[[#This Row],[KART]]*Tabela1[[#This Row],[Kolumna4]],) -> 0 | I167: 594 | J167: 99 | K167: 6 | L167: 0 | M167: 0 | N167: =IF(Tabela1[[#This Row],[Palet]]=0,0,IF(O167>0,O167*J167,)) ->  | Q167: 5900531001598 | R167: A
B168: =SUBTOTAL(103,$C$150:C168)+$B$142 -> 112 | C168: 102515 | D168: Śmietanka 18% wiaderka 3kg | E168: https://piatnica.com.pl/content/uploads/2020/11/Smietana_18-3-kg-460x358.png | F168: Wiaderko 3kg | H168: =IFERROR(Tabela1[[#This Row],[KART]]*Tabela1[[#This Row],[Kolumna4]],) -> 0 | I168: 100 | J168: 100 | K168: 1 | L168: 0 | M168: 0 | N168: =IF(Tabela1[[#This Row],[Palet]]=0,0,IF(O168>0,O168*J168,)) ->  | Q168: 5900531001727 | R168: A
B169: =SUBTOTAL(103,$C$150:C169)+$B$142 -> 112 | C169: 662010 | D169: Śmietana 18% UHT 1l | F169: Butelka 1L | G169: Zgrzewka 6 szt. | H169: =IFERROR(Tabela1[[#This Row],[KART]]*Tabela1[[#This Row],[Kolumna4]],) -> 0 | I169: 630 | J169: 105 | K169: 6 | L169: 0 | M169: 0 | N169: =IF(Tabela1[[#This Row],[Palet]]=0,0,IF(O169>0,O169*J169,)) ->  | Q169: 5901939005041 | R169: N
B170: =SUBTOTAL(103,$C$150:C170)+$B$142 -> 113 | C170: 102016 | D170: ŚMIETANA 18% 10L | E170: https://piatnica.com.pl/content/uploads/2020/11/Smietanka_30_10_l-460x358.png | F170: Wiaderko 10kg | H170: =IFERROR(Tabela1[[#This Row],[KART]]*Tabela1[[#This Row],[Kolumna4]],) -> 0 | I170: 360 | J170: 36 | K170: 10 | L170: =IF(ISERROR(H170/K170),,H170/K170) -> 0 | M170: =IF(ISERROR(H170/I170),,H170/I170) -> 0 | N170: =IF(Tabela1[[#This Row],[Palet]]=0,0,IF(O170>0,O170*J170,)) ->  | Q170: 5900531001314 | R170: A
B171: =SUBTOTAL(103,$C$150:C171)+$B$142 -> 114 | C171: 102502 | D171: Śmietana 18% HoReCa 1kg | E171: https://piatnica.com.pl/content/uploads/2020/11/Smietana_18_1_kg-1-460x358.png | F171: Wiaderko 1kg | G171: Tacka 6 szt. | H171: =IFERROR(Tabela1[[#This Row],[KART]]*Tabela1[[#This Row],[Kolumna4]],) -> 0 | I171: 594 | J171: 99 | K171: 6 | L171: 0 | M171: 0 | N171: =IF(Tabela1[[#This Row],[Palet]]=0,0,IF(O171>0,O171*J171,)) ->  | O171: =IF(N171>0,N171/J171,"-") ->  | Q171: 5900531001604 | R171: A
B172: =SUBTOTAL(103,$C$150:C172)+$B$142 -> 115 | C172: 102010 | D172: Śmietanka 30% wiaderka | E172: https://piatnica.com.pl/content/uploads/2020/11/Smietanka_30_10_l-460x358.png | F172: Wiaderko 10kg | H172: =IFERROR(Tabela1[[#This Row],[KART]]*Tabela1[[#This Row],[Kolumna4]],) -> 0 | I172: 360 | J172: 36 | K172: 10 | L172: 0 | M172: 0 | N172: =IF(Tabela1[[#This Row],[Palet]]=0,0,IF(O172>0,O172*J172,)) ->  | Q172: 5900531001277 | R172: A
B173: =SUBTOTAL(103,$C$150:C173)+$B$142 -> 116 | C173: 663203 | D173: Śmietana 30% UHT 1l | E173: https://piatnica.com.pl/content/uploads/2024/10/Piatnica-smietanka-30-1l-1-460x331.png | F173: Butelka 1L | G173: Zgrzewka 6 szt. | H173: =IFERROR(Tabela1[[#This Row],[KART]]*Tabela1[[#This Row],[Kolumna4]],) -> 0 | I173: 630 | J173: 105 | K173: 6 | L173: 0 | M173: 0 | N173: =IF(Tabela1[[#This Row],[Palet]]=0,0,IF(O173>0,O173*J173,)) ->  | Q173: 5901939005058 | R173: A
B174: =SUBTOTAL(103,$C$150:C174)+$B$142 -> 117 | C174: 102006 | D174: Śmietana 36% wiaderka | E174: https://piatnica.com.pl/content/uploads/2020/11/Smietanka_36_1_kg-1-460x358.png | F174: Wiaderko 10kg | H174: =IFERROR(Tabela1[[#This Row],[KART]]*Tabela1[[#This Row],[Kolumna4]],) -> 0 | I174: 360 | J174: 36 | K174: 10 | L174: 0 | M174: 0 | N174: =IF(Tabela1[[#This Row],[Palet]]=0,0,IF(O174>0,O174*J174,)) ->  | O174: =IF(N174>0,N174/J174,"-") ->  | Q174: 5900531001123 | R174: A
B175: =SUBTOTAL(103,$C$150:C175)+$B$142 -> 117 | C175: 102507 | D175: Śmietanka 42% wiaderka | F175: Wiaderko 10kg | H175: =IFERROR(Tabela1[[#This Row],[KART]]*Tabela1[[#This Row],[Kolumna4]],) -> 0 | I175: 0 | J175: 36 | K175: 10 | L175: =IF(ISERROR(H175/K175),"-",H175/K175) -> 0 | M175: =IF(ISERROR(H175/I175),,H175/I175) -> 0 | N175: =IF(Tabela1[[#This Row],[Palet]]=0,0,IF(O175>0,O175*J175,)) ->  | O175: =IF(N175>0,N175/J175,"-") ->  | R175: N
D176: Liczba zamówionych pozycji | G176: =COUNT(N150:N175) -> 0 | H176: =IFERROR(Tabela1[[#This Row],[KART]]*Tabela1[[#This Row],[Kolumna4]],) -> 0 | M176: =SUM(H150:H175) -> 0 | N176: =IF(Tabela1[[#This Row],[Palet]]=0,0,IF(O176>0,O176*J176,)) -> 0 | O176: =SUM(M150:M175) -> 0
B178: Zamówienie złożył: | F178: Imię i Nazwisko | N178: Kontakt: | O178: Telefon, fax
D183: DANE DO IMPORT ZAMÓWIEŃ
D185: NUMER PŁATNIKA | G185: NUMER ZAMÓWIENIA IMPULS | O185: ID ZAMÓWIENIA IMPULS

Sheet EKSPORT
D1: Zam | E1: Dostawa
B2: ='DRUK ZAMÓWIENIA'!D6 -> Nazwa Odbiorcy | D2: ='DRUK ZAMÓWIENIA'!F10 -> 2025-03-12 | E2: ='DRUK ZAMÓWIENIA'!O7 -> 2025-03-14
B3: Numer zam | D3: ='DRUK ZAMÓWIENIA'!F9 -> XLS/1117/71/2025
A5: LP | B5: KOD | C5: NAZWA | D5: SZT | E5: KART | F5: CZY AKTUALNY
A6: 1 | B6: ='DRUK ZAMÓWIENIA'!Q13 -> 5900531000010 | C6: ='DRUK ZAMÓWIENIA'!D13 -> Serek wiejski 200g | D6: ='DRUK ZAMÓWIENIA'!H13 -> 0 | E6: =IFERROR('DRUK ZAMÓWIENIA'!N13,0) -> 0 | F6: ='DRUK ZAMÓWIENIA'!R13 -> A
A7: 2 | B7: ='DRUK ZAMÓWIENIA'!Q14 -> 5900531050015 | C7: ='DRUK ZAMÓWIENIA'!D14 -> Serek wiejski BIO 200g | D7: ='DRUK ZAMÓWIENIA'!H14 -> 0 | E7: =IFERROR('DRUK ZAMÓWIENIA'!N14,0) -> 0 | F7: ='DRUK ZAMÓWIENIA'!R14 -> N
A8: 3 | B8: ='DRUK ZAMÓWIENIA'!Q15 -> 5900531004308 | C8: ='DRUK ZAMÓWIENIA'!D15 -> Serek wiejski BEZ LAKTOZY 200g | D8: ='DRUK ZAMÓWIENIA'!H15 -> 0 | E8: =IFERROR('DRUK ZAMÓWIENIA'!N15,0) -> 0 | F8: ='DRUK ZAMÓWIENIA'!R15 -> A
A9: 4 | B9: ='DRUK ZAMÓWIENIA'!Q16 -> 5900531007019 | C9: ='DRUK ZAMÓWIENIA'!D16 -> Serek wiejski WYSOKOBIAŁKOWY 200g | D9: ='DRUK ZAMÓWIENIA'!H16 -> 0 | E9: =IFERROR('DRUK ZAMÓWIENIA'!N16,0) -> 0 | F9: ='DRUK ZAMÓWIENIA'!R16 -> A
A10: 5 | B10: ='DRUK ZAMÓWIENIA'!Q17 -> 5900531000041 | C10: ='DRUK ZAMÓWIENIA'!D17 -> Serek wiejski "RODZINNY" 500g | D10: ='DRUK ZAMÓWIENIA'!H17 -> 0 | E10: =IFERROR('DRUK ZAMÓWIENIA'!N17,0) -> 0 | F10: ='DRUK ZAMÓWIENIA'!R17 -> A
A11: 6 | B11: ='DRUK ZAMÓWIENIA'!Q18 -> 5900531000102 | C11: ='DRUK ZAMÓWIENIA'!D18 -> Serek wiejski lekki 150g | D11: ='DRUK ZAMÓWIENIA'!H18 -> 0 | E11: =IFERROR('DRUK ZAMÓWIENIA'!N18,0) -> 0 | F11: ='DRUK ZAMÓWIENIA'!R18 -> A
A12: 7 | B12: ='DRUK ZAMÓWIENIA'!Q19 -> 5900531000072 | C12: ='DRUK ZAMÓWIENIA'!D19 -> Serek wiejski lekki "RODZINNY" 500g | D12: ='DRUK ZAMÓWIENIA'!H19 -> 0 | E12: =IFERROR('DRUK ZAMÓWIENIA'!N19,0) -> 0 | F12: ='DRUK ZAMÓWIENIA'!R19 -> N
A13: 8 | B13: ='DRUK ZAMÓWIENIA'!Q20 -> 5900531000201 | C13: ='DRUK ZAMÓWIENIA'!D20 -> Serek wiejski ze szczypiorkiem | D13: ='DRUK ZAMÓWIENIA'!H20 -> 0 | E13: =IFERROR('DRUK ZAMÓWIENIA'!N20,0) -> 0 | F13: ='DRUK ZAMÓWIENIA'!R20 -> A
A14: 9 | B14: ='DRUK ZAMÓWIENIA'!Q21 -> 5900531000928 | C14: ='DRUK ZAMÓWIENIA'!D21 -> Serek wiejski z miodem | D14: ='DRUK ZAMÓWIENIA'!H21 -> 0 | E14: =IFERROR('DRUK ZAMÓWIENIA'!N21,0) -> 0 | F14: ='DRUK ZAMÓWIENIA'!R21 -> N
A15: 10 | B15: ='DRUK ZAMÓWIENIA'!Q22 -> 5900531000911 | C15: ='DRUK ZAMÓWIENIA'!D22 -> Serek wiejski z ananasem | D15: ='DRUK ZAMÓWIENIA'!H22 -> 0 | E15: =IFERROR('DRUK ZAMÓWIENIA'!N22,0) -> 0 | F15: ='DRUK ZAMÓWIENIA'!R22 -> A
A16: 11 | B16: ='DRUK ZAMÓWIENIA'!Q23 -> 5900531000935 | C16: ='DRUK ZAMÓWIENIA'!D23 -> Serek wiejski z brzoskwinią | D16: ='DRUK ZAMÓWIENIA'!H23 -> 0 | E16: =IFERROR('DRUK ZAMÓWIENIA'!N23,0) -> 0 | F16: ='DRUK ZAMÓWIENIA'!R23 -> A
A17: 12 | B17: ='DRUK ZAMÓWIENIA'!Q24 -> 5900531000942 | C17: ='DRUK ZAMÓWIENIA'!D24 -> Serek wiejski z truskawkami | D17: ='DRUK ZAMÓWIENIA'!H24 -> 0 | E17: =IFERROR('DRUK ZAMÓWIENIA'!N24,0) -> 0 | F17: ='DRUK ZAMÓWIENIA'!R24 -> A
A18: 13 | B18: ='DRUK ZAMÓWIENIA'!Q25 -> 5900531000980 | C18: ='DRUK ZAMÓWIENIA'!D25 -> Serek wiejski z malinami i żurawiną | D18: ='DRUK ZAMÓWIENIA'!H25 -> 0 | E18: =IFERROR('DRUK ZAMÓWIENIA'!N25,0) -> 0 | F18: ='DRUK ZAMÓWIENIA'!R25 -> A
A19: 14 | B19: ='DRUK ZAMÓWIENIA'!Q26 -> 5900531000973 | C19: ='DRUK ZAMÓWIENIA'!D26 -> Serek wiejski z jagodami | D19: ='DRUK ZAMÓWIENIA'!H26 -> 0 | E19: =IFERROR('DRUK ZAMÓWIENIA'!N26,0) -> 0 | F19: ='DRUK ZAMÓWIENIA'!R26 -> A
A20: 15 | B20: ='DRUK ZAMÓWIENIA'!Q27 -> 5900531001383 | C20: ='DRUK ZAMÓWIENIA'!D27 -> Serek wiejski jabłko z cynamonem | D20: ='DRUK ZAMÓWIENIA'!H27 -> 0 | E20: =IFERROR('DRUK ZAMÓWIENIA'!N27,0) -> 0 | F20: ='DRUK ZAMÓWIENIA'!R27 -> A
A21: 16 | B21: ='DRUK ZAMÓWIENIA'!Q28 -> 5900531000300 | C21: ='DRUK ZAMÓWIENIA'!D28 -> Twarożek naturalny | D21: ='DRUK ZAMÓWIENIA'!H28 -> 0 | E21: =IFERROR('DRUK ZAMÓWIENIA'!N28,0) -> 0 | F21: ='DRUK ZAMÓWIENIA'!R28 -> A
A22: 17 | B22: ='DRUK ZAMÓWIENIA'!Q29 -> 5900531004049 | C22: ='DRUK ZAMÓWIENIA'!D29 -> Twaróg wiejski lekki | D22: ='DRUK ZAMÓWIENIA'!H29 -> 0 | E22: =IFERROR('DRUK ZAMÓWIENIA'!N29,0) -> 0 | F22: ='DRUK ZAMÓWIENIA'!R29 -> A
A23: 18 | B23: ='DRUK ZAMÓWIENIA'!Q30 -> 5900531004018 | C23: ='DRUK ZAMÓWIENIA'!D30 -> Twaróg wiejski półtłusty | D23: ='DRUK ZAMÓWIENIA'!H30 -> 0 | E23: =IFERROR('DRUK ZAMÓWIENIA'!N30,0) -> 0 | F23: ='DRUK ZAMÓWIENIA'!R30 -> A
A24: 19 | B24: ='DRUK ZAMÓWIENIA'!Q31 -> 5900531004025 | C24: ='DRUK ZAMÓWIENIA'!D31 -> Twaróg wiejski tłusty | D24: ='DRUK ZAMÓWIENIA'!H31 -> 0 | E24: =IFERROR('DRUK ZAMÓWIENIA'!N31,0) -> 0 | F24: ='DRUK ZAMÓWIENIA'!R31 -> A
A25: 19 | B25: ='DRUK ZAMÓWIENIA'!Q32 -> 5900531105036 | C25: ='DRUK ZAMÓWIENIA'!D32 -> TWARÓG MIELONY PÓŁTŁUSTY 250G | D25: ='DRUK ZAMÓWIENIA'!H32 -> 0 | E25: =IFERROR('DRUK ZAMÓWIENIA'!N32,0) -> 0 | F25: ='DRUK ZAMÓWIENIA'!R32 -> A
A26: 19 | B26: ='DRUK ZAMÓWIENIA'!Q33 -> 5900531105043 | C26: ='DRUK ZAMÓWIENIA'!D33 -> TWARÓG MIELONY CHUDY 250G | D26: ='DRUK ZAMÓWIENIA'!H33 -> 0 | E26: =IFERROR('DRUK ZAMÓWIENIA'!N33,0) -> 0 | F26: ='DRUK ZAMÓWIENIA'!R33 -> A
A27: 20 | B27: ='DRUK ZAMÓWIENIA'!Q34 -> 5900531054013 | C27: ='DRUK ZAMÓWIENIA'!D34 -> Twaróg wiejski BIO | D27: ='DRUK ZAMÓWIENIA'!H34 -> 0 | E27: =IFERROR('DRUK ZAMÓWIENIA'!N34,0) -> 0 | F27: ='DRUK ZAMÓWIENIA'!R34 -> A
A28: 21 | B28: ='DRUK ZAMÓWIENIA'!Q35 -> 5900531004056 | C28: ='DRUK ZAMÓWIENIA'!D35 -> Twaróg SERNIKOWY mielony | D28: ='DRUK ZAMÓWIENIA'!H35 -> 0 | E28: =IFERROR('DRUK ZAMÓWIENIA'!N35,0) -> 0 | F28: ='DRUK ZAMÓWIENIA'!R35 -> A
A29: 22 | B29: ='DRUK ZAMÓWIENIA'!Q36 -> 5900531000508 | C29: ='DRUK ZAMÓWIENIA'!D36 -> Twój Smak naturalny | D29: ='DRUK ZAMÓWIENIA'!H36 -> 0 | E29: =IFERROR('DRUK ZAMÓWIENIA'!N36,0) -> 0 | F29: ='DRUK ZAMÓWIENIA'!R36 -> A
A30: 23 | B30: ='DRUK ZAMÓWIENIA'!Q37 -> 5900531000607 | C30: ='DRUK ZAMÓWIENIA'!D37 -> Twój Smak naturalny 200g | D30: ='DRUK ZAMÓWIENIA'!H37 -> 0 | E30: =IFERROR('DRUK ZAMÓWIENIA'!N37,0) -> 0 | F30: ='DRUK ZAMÓWIENIA'!R37 -> A
A31: 24 | B31: ='DRUK ZAMÓWIENIA'!Q38 -> 5900531000522 | C31: ='DRUK ZAMÓWIENIA'!D38 -> Twój Smak z przyprawami | D31: ='DRUK ZAMÓWIENIA'!H38 -> 0 | E31: =IFERROR('DRUK ZAMÓWIENIA'!N38,0) -> 0 | F31: ='DRUK ZAMÓWIENIA'!R38 -> A
A32: 25 | B32: ='DRUK ZAMÓWIENIA'!Q39 -> 5900531000515 | C32: ='DRUK ZAMÓWIENIA'!D39 -> Twój Smak z chrzanem | D32: ='DRUK ZAMÓWIENIA'!H39 -> 0 | E32: =IFERROR('DRUK ZAMÓWIENIA'!N39,0) -> 0 | F32: ='DRUK ZAMÓWIENIA'!R39 -> A
A33: 26 | B33: ='DRUK ZAMÓWIENIA'!Q40 -> 5900531000539 | C33: ='DRUK ZAMÓWIENIA'!D40 -> Twój Smak z czosnkiem | D33: ='DRUK ZAMÓWIENIA'!H40 -> 0 | E33: =IFERROR('DRUK ZAMÓWIENIA'!N40,0) -> 0 | F33: ='DRUK ZAMÓWIENIA'!R40 -> A
A34: 27 | B34: ='DRUK ZAMÓWIENIA'!Q41 -> 5900531000546 | C34: ='DRUK ZAMÓWIENIA'!D41 -> Twój Smak ze szczypiorkiem | D34: ='DRUK ZAMÓWIENIA'!H41 -> 0 | E34: =IFERROR('DRUK ZAMÓWIENIA'!N41,0) -> 0 | F34: ='DRUK ZAMÓWIENIA'!R41 -> A
A35: 28 | B35: ='DRUK ZAMÓWIENIA'!Q42 -> 5900531001710 | C35: ='DRUK ZAMÓWIENIA'!D42 -> Twój Smak z ziołami | D35: ='DRUK ZAMÓWIENIA'!H42 -> 0 | E35: =IFERROR('DRUK ZAMÓWIENIA'!N42,0) -> 0 | F35: ='DRUK ZAMÓWIENIA'!R42 -> A
A36: 29 | B36: ='DRUK ZAMÓWIENIA'!Q43 -> 5900531000706 | C36: ='DRUK ZAMÓWIENIA'!D43 -> Twój Smak „PUSZYSTY” naturalny | D36: ='DRUK ZAMÓWIENIA'!H43 -> 0 | E36: =IFERROR('DRUK ZAMÓWIENIA'!N43,0) -> 0 | F36: ='DRUK ZAMÓWIENIA'!R43 -> A
A37: 30 | B37: ='DRUK ZAMÓWIENIA'!Q44 -> 5900531000720 | C37: ='DRUK ZAMÓWIENIA'!D44 -> Twój Smak „PUSZYSTY” zioła | D37: ='DRUK ZAMÓWIENIA'!H44 -> 0 | E37: =IFERROR('DRUK ZAMÓWIENIA'!N44,0) -> 0 | F37: ='DRUK ZAMÓWIENIA'!R44 -> A
A38: 31 | B38: ='DRUK ZAMÓWIENIA'!Q45 -> 5900531000713 | C38: ='DRUK ZAMÓWIENIA'!D45 -> Twój Smak „PUSZYSTY” szczypior | D38: ='DRUK ZAMÓWIENIA'!H45 -> 0 | E38: =IFERROR('DRUK ZAMÓWIENIA'!N45,0) -> 0 | F38: ='DRUK ZAMÓWIENIA'!R45 -> A
A39: 32 | B39: ='DRUK ZAMÓWIENIA'!Q46 -> 5900531000737 | C39: ='DRUK ZAMÓWIENIA'!D46 -> Twój Smak „PUSZYSTY” pieprz | D39: ='DRUK ZAMÓWIENIA'!H46 -> 0 | E39: =IFERROR('DRUK ZAMÓWIENIA'!N46,0) -> 0 | F39: ='DRUK ZAMÓWIENIA'!R46 -> A
A40: 33 | B40: ='DRUK ZAMÓWIENIA'!Q47 -> 5900531000775 | C40: ='DRUK ZAMÓWIENIA'!D47 -> Twój Smak „PUSZYSTY” z łososiem | D40: ='DRUK ZAMÓWIENIA'!H47 -> 0 | E40: =IFERROR('DRUK ZAMÓWIENIA'!N47,0) -> 0 | F40: ='DRUK ZAMÓWIENIA'!R47 -> A
A41: 34 | B41: ='DRUK ZAMÓWIENIA'!Q48 -> 5900531000843 | C41: ='DRUK ZAMÓWIENIA'!D48 -> Twój Smak „PUSZYSTY” z pomidorami | D41: ='DRUK ZAMÓWIENIA'!H48 -> 0 | E41: =IFERROR('DRUK ZAMÓWIENIA'!N48,0) -> 0 | F41: ='DRUK ZAMÓWIENIA'!R48 -> A
A42: 35 | B42: ='DRUK ZAMÓWIENIA'!Q49 -> 5900531001758 | C42: ='DRUK ZAMÓWIENIA'!D49 -> Twój Smak „PUSZYSTY” z grzybami leśnymi | D42: ='DRUK ZAMÓWIENIA'!H49 -> 0 | E42: =IFERROR('DRUK ZAMÓWIENIA'!N49,0) -> 0 | F42: ='DRUK ZAMÓWIENIA'!R49 -> N
A43: 36 | B43: ='DRUK ZAMÓWIENIA'!Q50 -> 5900531000867 | C43: ='DRUK ZAMÓWIENIA'!D50 -> Twój Smak „PUSZYSTY” z chrzanem | D43: ='DRUK ZAMÓWIENIA'!H50 -> 0 | E43: =IFERROR('DRUK ZAMÓWIENIA'!N50,0) -> 0 | F43: ='DRUK ZAMÓWIENIA'!R50 -> A
A44: 37 | B44: ='DRUK ZAMÓWIENIA'!Q51 -> 5900531006005 | C44: ='DRUK ZAMÓWIENIA'!D51 -> Twój Smak Aksamitny naturalny | D44: ='DRUK ZAMÓWIENIA'!H51 -> 0 | E44: =IFERROR('DRUK ZAMÓWIENIA'!N51,0) -> 0 | F44: ='DRUK ZAMÓWIENIA'!R51 -> A
A45: 38 | B45: ='DRUK ZAMÓWIENIA'!Q52 -> 5900531006012 | C45: ='DRUK ZAMÓWIENIA'!D52 -> Twój Smak Aksamitny z ziołami | D45: ='DRUK ZAMÓWIENIA'!H52 -> 0 | E45: =IFERROR('DRUK ZAMÓWIENIA'!N52,0) -> 0 | F45: ='DRUK ZAMÓWIENIA'!R52 -> A
A46: 39 | B46: ='DRUK ZAMÓWIENIA'!Q53 -> 5900531006029 | C46: ='DRUK ZAMÓWIENIA'!D53 -> Serek Milandia ze szpinakiem i czosnkiem | D46: ='DRUK ZAMÓWIENIA'!H53 -> 0 | E46: =IFERROR('DRUK ZAMÓWIENIA'!N53,0) -> 0 | F46: ='DRUK ZAMÓWIENIA'!R53 -> N
A47: 40 | B47: ='DRUK ZAMÓWIENIA'!Q54 -> 5900531006036 | C47: ='DRUK ZAMÓWIENIA'!D54 -> Twój Smak Aksamitny z Łososiem | D47: ='DRUK ZAMÓWIENIA'!H54 -> 0 | E47: =IFERROR('DRUK ZAMÓWIENIA'!N54,0) -> 0 | F47: ='DRUK ZAMÓWIENIA'!R54 -> A
A48: 41 | B48: ='DRUK ZAMÓWIENIA'!Q55 -> 5900531006043 | C48: ='DRUK ZAMÓWIENIA'!D55 -> Twój Smak Aksamitny z jogurtem | D48: ='DRUK ZAMÓWIENIA'!H55 -> 0 | E48: =IFERROR('DRUK ZAMÓWIENIA'!N55,0) -> 0 | F48: ='DRUK ZAMÓWIENIA'!R55 -> N
A49: 42 | B49: ='DRUK ZAMÓWIENIA'!Q56 -> 5900531001406 | C49: ='DRUK ZAMÓWIENIA'!D56 -> Mascarpone | D49: ='DRUK ZAMÓWIENIA'!H56 -> 0 | E49: =IFERROR('DRUK ZAMÓWIENIA'!N56,0) -> 0 | F49: ='DRUK ZAMÓWIENIA'!R56 -> A
A50: 43 | B50: ='DRUK ZAMÓWIENIA'!Q57 -> 5900531001475 | C50: ='DRUK ZAMÓWIENIA'!D57 -> Mascarpone 500g | D50: ='DRUK ZAMÓWIENIA'!H57 -> 0 | E50: =IFERROR('DRUK ZAMÓWIENIA'!N57,0) -> 0 | F50: ='DRUK ZAMÓWIENIA'!R57 -> A
A51: 44 | B51: ='DRUK ZAMÓWIENIA'!Q58 -> 5900531003776 | C51: ='DRUK ZAMÓWIENIA'!D58 -> Kefir 0% | D51: ='DRUK ZAMÓWIENIA'!H58 -> 0 | E51: =IFERROR('DRUK ZAMÓWIENIA'!N58,0) -> 0 | F51: ='DRUK ZAMÓWIENIA'!R58 -> N
A52: 45 | B52: ='DRUK ZAMÓWIENIA'!Q59 -> 5900531003776 | C52: ='DRUK ZAMÓWIENIA'!D59 -> Kefir 2% | D52: ='DRUK ZAMÓWIENIA'!H59 -> 0 | E52: =IFERROR('DRUK ZAMÓWIENIA'!N59,0) -> 0 | F52: ='DRUK ZAMÓWIENIA'!R59 -> A
A53: 46 | B53: ='DRUK ZAMÓWIENIA'!Q60 -> 5900531011030 | C53: ='DRUK ZAMÓWIENIA'!D60 -> Serek Homogenizowany naturalny | D53: ='DRUK ZAMÓWIENIA'!H60 -> 0 | E53: =IFERROR('DRUK ZAMÓWIENIA'!N60,0) -> 0 | F53: ='DRUK ZAMÓWIENIA'!R60 -> A
A54: 47 | B54: ='DRUK ZAMÓWIENIA'!Q61 -> 5900531011016 | C54: ='DRUK ZAMÓWIENIA'!D61 -> Serek Homogenizowany waniliowy | D54: ='DRUK ZAMÓWIENIA'!H61 -> 0 | E54: =IFERROR('DRUK ZAMÓWIENIA'!N61,0) -> 0 | F54: ='DRUK ZAMÓWIENIA'!R61 -> A
A55: 48 | B55: ='DRUK ZAMÓWIENIA'!Q62 -> 5900531011023 | C55: ='DRUK ZAMÓWIENIA'!D62 -> Serek Homogenizowany truskawkowy | D55: ='DRUK ZAMÓWIENIA'!H62 -> 0 | E55: =IFERROR('DRUK ZAMÓWIENIA'!N62,0) -> 0 | F55: ='DRUK ZAMÓWIENIA'!R62 -> A
A56: 49 | B56: ='DRUK ZAMÓWIENIA'!Q63 -> 5900531011047 | C56: ='DRUK ZAMÓWIENIA'!D63 -> Serek Homogenizowany straciatella | D56: ='DRUK ZAMÓWIENIA'!H63 -> 0 | E56: =IFERROR('DRUK ZAMÓWIENIA'!N63,0) -> 0 | F56: ='DRUK ZAMÓWIENIA'!R63 -> A
A57: 50 | B57: ='DRUK ZAMÓWIENIA'!Q64 -> 5900531011061 | C57: ='DRUK ZAMÓWIENIA'!D64 -> Serek Homogenizowany kokosowy | D57: ='DRUK ZAMÓWIENIA'!H64 -> 0 | E57: =IFERROR('DRUK ZAMÓWIENIA'!N64,0) -> 0 | F57: ='DRUK ZAMÓWIENIA'!R64 -> A
A58: 51 | B58: ='DRUK ZAMÓWIENIA'!Q65 -> 5900531011139 | C58: ='DRUK ZAMÓWIENIA'!D65 -> Serek Homogenizowany ciasteczkowy | D58: ='DRUK ZAMÓWIENIA'!H65 -> 0 | E58: =IFERROR('DRUK ZAMÓWIENIA'!N65,0) -> 0 | F58: ='DRUK ZAMÓWIENIA'!R65 -> A
A59: 51 | B59: ='DRUK ZAMÓWIENIA'!Q66 -> 5900531011207 | C59: ='DRUK ZAMÓWIENIA'!D66 -> Serek Homogenizowany brzoskwiniowy 150g | D59: ='DRUK ZAMÓWIENIA'!H66 -> 0 | E59: =IFERROR('DRUK ZAMÓWIENIA'!N66,0) -> 0 | F59: ='DRUK ZAMÓWIENIA'!R66 -> A
A60: 52 | B60: ='DRUK ZAMÓWIENIA'!Q67 -> 5901939020013 | C60: ='DRUK ZAMÓWIENIA'!D67 -> Twój Smak w Plastrach Śmietankowy | D60: ='DRUK ZAMÓWIENIA'!H67 -> 0 | E60: =IFERROR('DRUK ZAMÓWIENIA'!N67,0) -> 0 | F60: ='DRUK ZAMÓWIENIA'!R67 -> A
A61: 53 | B61: ='DRUK ZAMÓWIENIA'!Q68 -> 5901939020044 | C61: ='DRUK ZAMÓWIENIA'!D68 -> Twój Smak w Plastrach z Ziołami | D61: ='DRUK ZAMÓWIENIA'!H68 -> 0 | E61: =IFERROR('DRUK ZAMÓWIENIA'!N68,0) -> 0 | F61: ='DRUK ZAMÓWIENIA'!R68 -> A
A62: 54 | B62: ='DRUK ZAMÓWIENIA'!Q69 -> 5901939020020 | C62: ='DRUK ZAMÓWIENIA'!D69 -> Twój Smak w Plastrach Papryka i Pomidor | D62: ='DRUK ZAMÓWIENIA'!H69 -> 0 | E62: =IFERROR('DRUK ZAMÓWIENIA'!N69,0) -> 0 | F62: ='DRUK ZAMÓWIENIA'!R69 -> A
A63: 55 | B63: ='DRUK ZAMÓWIENIA'!Q70 -> 5900531001062 | C63: ='DRUK ZAMÓWIENIA'!D70 -> Śmietana 10% | D63: ='DRUK ZAMÓWIENIA'!H70 -> 0 | E63: =IFERROR('DRUK ZAMÓWIENIA'!N70,0) -> 0 | F63: ='DRUK ZAMÓWIENIA'!R70 -> A
A64: 56 | B64: ='DRUK ZAMÓWIENIA'!Q71 -> 5901939010014 | C64: ='DRUK ZAMÓWIENIA'!D71 -> Śmietana 12% | D64: ='DRUK ZAMÓWIENIA'!H71 -> 0 | E64: =IFERROR('DRUK ZAMÓWIENIA'!N71,0) -> 0 | F64: ='DRUK ZAMÓWIENIA'!R71 -> A
A65: 57 | B65: ='DRUK ZAMÓWIENIA'!Q72 -> 5900531001109 | C65: ='DRUK ZAMÓWIENIA'!D72 -> Śmietana 12 % | D65: ='DRUK ZAMÓWIENIA'!H72 -> 0 | E65: =IFERROR('DRUK ZAMÓWIENIA'!N72,0) -> 0 | F65: ='DRUK ZAMÓWIENIA'!R72 -> A
A66: 58 | B66: ='DRUK ZAMÓWIENIA'!Q73 -> 5900531001031 | C66: ='DRUK ZAMÓWIENIA'!D73 -> Śmietana 18% | D66: ='DRUK ZAMÓWIENIA'!H73 -> 0 | E66: =IFERROR('DRUK ZAMÓWIENIA'!N73,0) -> 0 | F66: ='DRUK ZAMÓWIENIA'!R73 -> A
A67: 59 | B67: ='DRUK ZAMÓWIENIA'!Q74 -> 5900531009013 | C67: ='DRUK ZAMÓWIENIA'!D74 -> Śmietana 18% BIO | D67: ='DRUK ZAMÓWIENIA'!H74 -> 0 | E67: =IFERROR('DRUK ZAMÓWIENIA'!N74,0) -> 0 | F67: ='DRUK ZAMÓWIENIA'!R74 -> N
A68: 60 | B68: ='DRUK ZAMÓWIENIA'!Q75 -> 5901939005010 | C68: ='DRUK ZAMÓWIENIA'!D75 -> ŚMIETANA 18% 250 ml | D68: ='DRUK ZAMÓWIENIA'!H75 -> 0 | E68: =IFERROR('DRUK ZAMÓWIENIA'!N75,0) -> 0 | F68: ='DRUK ZAMÓWIENIA'!R75 -> N
A69: 61 | B69: ='DRUK ZAMÓWIENIA'!Q76 -> 5900531001130 | C69: ='DRUK ZAMÓWIENIA'!D76 -> Śmietana 18% | D69: ='DRUK ZAMÓWIENIA'!H76 -> 0 | E69: =IFERROR('DRUK ZAMÓWIENIA'!N76,0) -> 0 | F69: ='DRUK ZAMÓWIENIA'!R76 -> A
A70: 62 | B70: ='DRUK ZAMÓWIENIA'!Q77 -> 5900531001086 | C70: ='DRUK ZAMÓWIENIA'!D77 -> Śmietana 30% | D70: ='DRUK ZAMÓWIENIA'!H77 -> 0 | E70: =IFERROR('DRUK ZAMÓWIENIA'!N77,0) -> 0 | F70: ='DRUK ZAMÓWIENIA'!R77 -> A
A71: 63 | B71: ='DRUK ZAMÓWIENIA'!Q78 -> 5901939005027 | C71: ='DRUK ZAMÓWIENIA'!D78 -> Śmietana 30% 250 ml | D71: ='DRUK ZAMÓWIENIA'!H78 -> 0 | E71: =IFERROR('DRUK ZAMÓWIENIA'!N78,0) -> 0 | F71: ='DRUK ZAMÓWIENIA'!R78 -> N
A72: 64 | B72: ='DRUK ZAMÓWIENIA'!Q79 -> 5900531001079 | C72: ='DRUK ZAMÓWIENIA'!D79 -> Śmietanka 30% do ubijania | D72: ='DRUK ZAMÓWIENIA'!H79 -> 0 | E72: =IFERROR('DRUK ZAMÓWIENIA'!N79,0) -> 0 | F72: ='DRUK ZAMÓWIENIA'!R79 -> A
A73: 65 | B73: ='DRUK ZAMÓWIENIA'!Q80 -> 5900531001024 | C73: ='DRUK ZAMÓWIENIA'!D80 -> Śmietana 36% | D73: ='DRUK ZAMÓWIENIA'!H80 -> 0 | E73: =IFERROR('DRUK ZAMÓWIENIA'!N80,0) -> 0 | F73: ='DRUK ZAMÓWIENIA'!R80 -> A
A74: 66 | B74: ='DRUK ZAMÓWIENIA'!Q81 -> 5900531000423 | C74: ='DRUK ZAMÓWIENIA'!D81 -> Jogurt Naturalny 2% 180g | D74: ='DRUK ZAMÓWIENIA'!H81 -> 0 | E74: =IFERROR('DRUK ZAMÓWIENIA'!N81,0) -> 0 | F74: ='DRUK ZAMÓWIENIA'!R81 -> A
A75: 67 | B75: ='DRUK ZAMÓWIENIA'!Q82 -> 5900531003424 | C75: ='DRUK ZAMÓWIENIA'!D82 -> Jogurt BIO | D75: ='DRUK ZAMÓWIENIA'!H82 -> 0 | E75: =IFERROR('DRUK ZAMÓWIENIA'!N82,0) -> 0 | F75: ='DRUK ZAMÓWIENIA'!R82 -> A
A76: 68 | B76: ='DRUK ZAMÓWIENIA'!Q83 -> 5900531003738 | C76: ='DRUK ZAMÓWIENIA'!D83 -> Jogurt Naturalny 2% 330g | D76: ='DRUK ZAMÓWIENIA'!H83 -> 0 | E76: =IFERROR('DRUK ZAMÓWIENIA'!N83,0) -> 0 | F76: ='DRUK ZAMÓWIENIA'!R83 -> A
A77: 69 | B77: ='DRUK ZAMÓWIENIA'!Q84 -> 5900531003103 | C77: ='DRUK ZAMÓWIENIA'!D84 -> Jogurt Grecki Naturalny 0% | D77: ='DRUK ZAMÓWIENIA'!H84 -> 0 | E77: =IFERROR('DRUK ZAMÓWIENIA'!N84,0) -> 0 | F77: ='DRUK ZAMÓWIENIA'!R84 -> A
A78: 70 | B78: ='DRUK ZAMÓWIENIA'!Q85 -> 5900531003202 | C78: ='DRUK ZAMÓWIENIA'!D85 -> Jogurt Grecki Truskawka | D78: ='DRUK ZAMÓWIENIA'!H85 -> 0 | E78: =IFERROR('DRUK ZAMÓWIENIA'!N85,0) -> 0 | F78: ='DRUK ZAMÓWIENIA'!R85 -> N
A79: 71 | B79: ='DRUK ZAMÓWIENIA'!Q86 -> 5900531003608 | C79: ='DRUK ZAMÓWIENIA'!D86 -> Jogurt Grecki Brzoskwinia | D79: ='DRUK ZAMÓWIENIA'!H86 -> 0 | E79: =IFERROR('DRUK ZAMÓWIENIA'!N86,0) -> 0 | F79: ='DRUK ZAMÓWIENIA'!R86 -> N
A80: 72 | B80: ='DRUK ZAMÓWIENIA'!Q87 -> 5900531003615 | C80: ='DRUK ZAMÓWIENIA'!D87 -> Jogurt Grecki Wiśnia | D80: ='DRUK ZAMÓWIENIA'!H87 -> 0 | E80: =IFERROR('DRUK ZAMÓWIENIA'!N87,0) -> 0 | F80: ='DRUK ZAMÓWIENIA'!R87 -> N
A81: 73 | B81: ='DRUK ZAMÓWIENIA'!Q88 -> 5900531003400 | C81: ='DRUK ZAMÓWIENIA'!D88 -> Jogurt Grecki Jagoda | D81: ='DRUK ZAMÓWIENIA'!H88 -> 0 | E81: =IFERROR('DRUK ZAMÓWIENIA'!N88,0) -> 0 | F81: ='DRUK ZAMÓWIENIA'!R88 -> N
A82: 74 | B82: ='DRUK ZAMÓWIENIA'!Q89 -> 5900531003301 | C82: ='DRUK ZAMÓWIENIA'!D89 -> Jogurt Grecki Malina | D82: ='DRUK ZAMÓWIENIA'!H89 -> 0 | E82: =IFERROR('DRUK ZAMÓWIENIA'!N89,0) -> 0 | F82: ='DRUK ZAMÓWIENIA'!R89 -> N
A83: 75 | B83: ='DRUK ZAMÓWIENIA'!Q90 -> 5900531003509 | C83: ='DRUK ZAMÓWIENIA'!D90 -> Jogurt Grecki Gruszka | D83: ='DRUK ZAMÓWIENIA'!H90 -> 0 | E83: =IFERROR('DRUK ZAMÓWIENIA'!N90,0) -> 0 | F83: ='DRUK ZAMÓWIENIA'!R90 -> N
A84: 76 | B84: ='DRUK ZAMÓWIENIA'!Q91 -> 5900531004544 | C84: ='DRUK ZAMÓWIENIA'!D91 -> Jogurt SYR naturalny150g | D84: ='DRUK ZAMÓWIENIA'!H91 -> 0 | E84: =IFERROR('DRUK ZAMÓWIENIA'!N91,0) -> 0 | F84: ='DRUK ZAMÓWIENIA'!R91 -> A
A85: 77 | B85: ='DRUK ZAMÓWIENIA'!Q92 -> 5900531004506 | C85: ='DRUK ZAMÓWIENIA'!D92 -> Jogurt SYR z truskawkami 150g | D85: ='DRUK ZAMÓWIENIA'!H92 -> 0 | E85: =IFERROR('DRUK ZAMÓWIENIA'!N92,0) -> 0 | F85: ='DRUK ZAMÓWIENIA'!R92 -> A
A86: 78 | B86: ='DRUK ZAMÓWIENIA'!Q93 -> 5900531004513 | C86: ='DRUK ZAMÓWIENIA'!D93 -> Jogurt SYR z jagodami 150g | D86: ='DRUK ZAMÓWIENIA'!H93 -> 0 | E86: =IFERROR('DRUK ZAMÓWIENIA'!N93,0) -> 0 | F86: ='DRUK ZAMÓWIENIA'!R93 -> A
A87: 79 | B87: ='DRUK ZAMÓWIENIA'!Q94 -> 5900531004520 | C87: ='DRUK ZAMÓWIENIA'!D94 -> Jogurt SYR z brzoskwiniami 150g | D87: ='DRUK ZAMÓWIENIA'!H94 -> 0 | E87: =IFERROR('DRUK ZAMÓWIENIA'!N94,0) -> 0 | F87: ='DRUK ZAMÓWIENIA'!R94 -> N
A88: 80 | B88: ='DRUK ZAMÓWIENIA'!Q95 -> 5900531004537 | C88: ='DRUK ZAMÓWIENIA'!D95 -> Jogurt SYR waniliowy 150g | D88: ='DRUK ZAMÓWIENIA'!H95 -> 0 | E88: =IFERROR('DRUK ZAMÓWIENIA'!N95,0) -> 0 | F88: ='DRUK ZAMÓWIENIA'!R95 -> A
A89: 81 | B89: ='DRUK ZAMÓWIENIA'!Q96 -> 5900531004704 | C89: ='DRUK ZAMÓWIENIA'!D96 -> Jogurt SKYR z Mango 150g | D89: ='DRUK ZAMÓWIENIA'!H96 -> 0 | E89: =IFERROR('DRUK ZAMÓWIENIA'!N96,0) -> 0 | F89: ='DRUK ZAMÓWIENIA'!R96 -> A
A90: 82 | B90: ='DRUK ZAMÓWIENIA'!Q97 -> 5900531004827 | C90: ='DRUK ZAMÓWIENIA'!D97 -> Jogurt SKYR czekolada z wiśniami 150g | D90: ='DRUK ZAMÓWIENIA'!H97 -> 0 | E90: =IFERROR('DRUK ZAMÓWIENIA'!N97,0) -> 0 | F90: ='DRUK ZAMÓWIENIA'!R97 -> A
A91: 83 | B91: ='DRUK ZAMÓWIENIA'!Q98 -> 5900531004834 | C91: ='DRUK ZAMÓWIENIA'!D98 -> Jogurt SKYR TIRAMISU 150G | D91: ='DRUK ZAMÓWIENIA'!H98 -> 0 | E91: =IFERROR('DRUK ZAMÓWIENIA'!N98,0) -> 0 | F91: ='DRUK ZAMÓWIENIA'!R98 -> A
A92: 84 | B92: ='DRUK ZAMÓWIENIA'!Q99 -> 5900531004766 | C92: ='DRUK ZAMÓWIENIA'!D99 -> Jogurt SKYR pomarańcza straciatella 150G | D92: ='DRUK ZAMÓWIENIA'!H99 -> 0 | E92: =IFERROR('DRUK ZAMÓWIENIA'!N99,0) -> 0 | F92: ='DRUK ZAMÓWIENIA'!R99 -> A
A93: 82 | B93: ='DRUK ZAMÓWIENIA'!Q100 -> 5900531004735 | C93: ='DRUK ZAMÓWIENIA'!D100 -> SKYR NATURALNY 450G | D93: ='DRUK ZAMÓWIENIA'!H100 -> 0 | E93: =IFERROR('DRUK ZAMÓWIENIA'!N100,0) -> 0 | F93: ='DRUK ZAMÓWIENIA'!R100 -> A
A94: 83 | B94: ='DRUK ZAMÓWIENIA'!Q101 -> 5900531004742 | C94: ='DRUK ZAMÓWIENIA'!D101 -> SKYR WANILIOWY 450G | D94: ='DRUK ZAMÓWIENIA'!H101 -> 0 | E94: =IFERROR('DRUK ZAMÓWIENIA'!N101,0) -> 0 | F94: ='DRUK ZAMÓWIENIA'!R101 -> A
A95: 84 | B95: ='DRUK ZAMÓWIENIA'!Q102 -> 5900531004971 | C95: ='DRUK ZAMÓWIENIA'!D102 -> Jogurt KETO 150g | D95: ='DRUK ZAMÓWIENIA'!H102 -> 0 | E95: =IFERROR('DRUK ZAMÓWIENIA'!N102,0) -> 0 | F95: ='DRUK ZAMÓWIENIA'!R102 -> N
A96: 85 | B96: ='DRUK ZAMÓWIENIA'!Q103 -> 5900531004292 | C96: ='DRUK ZAMÓWIENIA'!D103 -> Serek Piątuś malinowy | D96: ='DRUK ZAMÓWIENIA'!H103 -> 0 | E96: =IFERROR('DRUK ZAMÓWIENIA'!N103,0) -> 0 | F96: ='DRUK ZAMÓWIENIA'!R103 -> N
A97: 86 | B97: ='DRUK ZAMÓWIENIA'!Q104 -> 5900531003639 | C97: ='DRUK ZAMÓWIENIA'!D104 -> Serek Piątuś waniliowy | D97: ='DRUK ZAMÓWIENIA'!H104 -> 0 | E97: =IFERROR('DRUK ZAMÓWIENIA'!N104,0) -> 0 | F97: ='DRUK ZAMÓWIENIA'!R104 -> N
A98: 87 | B98: ='DRUK ZAMÓWIENIA'!Q105 -> 5900531003646 | C98: ='DRUK ZAMÓWIENIA'!D105 -> Serek Piątuś bananowy | D98: ='DRUK ZAMÓWIENIA'!H105 -> 0 | E98: =IFERROR('DRUK ZAMÓWIENIA'!N105,0) -> 0 | F98: ='DRUK ZAMÓWIENIA'!R105 -> N
A99: 88 | B99: ='DRUK ZAMÓWIENIA'!Q106 -> 5900531003622 | C99: ='DRUK ZAMÓWIENIA'!D106 -> Serek Piątuś truskawkowy | D99: ='DRUK ZAMÓWIENIA'!H106 -> 0 | E99: =IFERROR('DRUK ZAMÓWIENIA'!N106,0) -> 0 | F99: ='DRUK ZAMÓWIENIA'!R106 -> N
A100: 89 | B100: ='DRUK ZAMÓWIENIA'!Q107 -> 5900531004315 | C100: ='DRUK ZAMÓWIENIA'!D107 -> Jogurt Piątuś jagodowy | D100: ='DRUK ZAMÓWIENIA'!H107 -> 0 | E100: =IFERROR('DRUK ZAMÓWIENIA'!N107,0) -> 0 | F100: ='DRUK ZAMÓWIENIA'!R107 -> N
A101: 90 | B101: ='DRUK ZAMÓWIENIA'!Q109 -> 5901939103105 | C101: ='DRUK ZAMÓWIENIA'!D109 -> SKYR PITNY NATURALNY 330 ml | D101: ='DRUK ZAMÓWIENIA'!H109 -> 0 | E101: =IFERROR('DRUK ZAMÓWIENIA'!N109,0) -> 0 | F101: ='DRUK ZAMÓWIENIA'!R109 -> A
A102: 91 | B102: ='DRUK ZAMÓWIENIA'!Q110 -> 5901939103068 | C102: ='DRUK ZAMÓWIENIA'!D110 -> SKYR PITNY MANGO & MARAKUJA 330 ml | D102: ='DRUK ZAMÓWIENIA'!H110 -> 0 | E102: =IFERROR('DRUK ZAMÓWIENIA'!N110,0) -> 0 | F102: ='DRUK ZAMÓWIENIA'!R110 -> A
A103: 92 | B103: ='DRUK ZAMÓWIENIA'!Q111 -> 5901939103075 | C103: ='DRUK ZAMÓWIENIA'!D111 -> SKYR PITNY WANILIA 330 ml | D103: ='DRUK ZAMÓWIENIA'!H111 -> 0 | E103: =IFERROR('DRUK ZAMÓWIENIA'!N111,0) -> 0 | F103: ='DRUK ZAMÓWIENIA'!R111 -> A
A104: 93 | B104: ='DRUK ZAMÓWIENIA'!Q112 -> 5901939103082 | C104: ='DRUK ZAMÓWIENIA'!D112 -> SKYR PITNY TRUSKAWKA 330 ml | D104: ='DRUK ZAMÓWIENIA'!H112 -> 0 | E104: =IFERROR('DRUK ZAMÓWIENIA'!N112,0) -> 0 | F104: ='DRUK ZAMÓWIENIA'!R112 -> N
A105: 94 | B105: ='DRUK ZAMÓWIENIA'!Q113 -> 5901939103099 | C105: ='DRUK ZAMÓWIENIA'!D113 -> SKYR PITNY JAGODA 330 ml | D105: ='DRUK ZAMÓWIENIA'!H113 -> 0 | E105: =IFERROR('DRUK ZAMÓWIENIA'!N113,0) -> 0 | F105: ='DRUK ZAMÓWIENIA'!R113 -> A
A106: 95 | B106: ='DRUK ZAMÓWIENIA'!Q114 -> 5901939103235 | C106: ='DRUK ZAMÓWIENIA'!D114 -> SKYR PITNY TRUSKAWKA KIWI 330 ml | D106: ='DRUK ZAMÓWIENIA'!H114 -> 0 | E106: =IFERROR('DRUK ZAMÓWIENIA'!N114,0) -> 0 | F106: ='DRUK ZAMÓWIENIA'!R114 -> A
A107: 96 | B107: ='DRUK ZAMÓWIENIA'!Q115 -> 5901939103402 | C107: ='DRUK ZAMÓWIENIA'!D115 -> SKYR PITNY WIŚNIA 330 ml | D107: ='DRUK ZAMÓWIENIA'!H115 -> 0 | E107: =IFERROR('DRUK ZAMÓWIENIA'!N115,0) -> 0 | F107: ='DRUK ZAMÓWIENIA'!R115 -> A
A108: 96 | B108: ='DRUK ZAMÓWIENIA'!Q116 -> 5901939103389 | C108: ='DRUK ZAMÓWIENIA'!D116 -> SKYR PITNY LIMONKA MIĘTA 330 ml | D108: ='DRUK ZAMÓWIENIA'!H116 -> 0 | E108: =IFERROR('DRUK ZAMÓWIENIA'!N116,0) -> 0 | F108: ='DRUK ZAMÓWIENIA'!R116 -> A
A109: 96 | B109: ='DRUK ZAMÓWIENIA'!Q117 -> 5901939103419 | C109: ='DRUK ZAMÓWIENIA'!D117 -> SKYR PITNY KOKOS ANANAS 330 ml | D109: ='DRUK ZAMÓWIENIA'!H117 -> 0 | E109: =IFERROR('DRUK ZAMÓWIENIA'!N117,0) -> 0 | F109: ='DRUK ZAMÓWIENIA'!R117 -> A
A110: 96 | B110: ='DRUK ZAMÓWIENIA'!Q118 -> 5901939103372 | C110: ='DRUK ZAMÓWIENIA'!D118 -> SKYR PITNY NEKTARYNKA MALINA 330 ml | D110: ='DRUK ZAMÓWIENIA'!H118 -> 0 | E110: =IFERROR('DRUK ZAMÓWIENIA'!N118,0) -> 0 | F110: ='DRUK ZAMÓWIENIA'!R118 -> A
A111: 96 | B111: ='DRUK ZAMÓWIENIA'!Q119 -> 5901939103334 | C111: ='DRUK ZAMÓWIENIA'!D119 -> SKYR PITNY WANILIA - STRACIATELLA 330 ml | D111: ='DRUK ZAMÓWIENIA'!H119 -> 0 | E111: =IFERROR('DRUK ZAMÓWIENIA'!N119,0) -> 0 | F111: ='DRUK ZAMÓWIENIA'!R119 -> A
A112: 96 | B112: ='DRUK ZAMÓWIENIA'!Q120 -> 5901939000770 | C112: ='DRUK ZAMÓWIENIA'!D120 -> Mleko Wiejskie 2% | D112: ='DRUK ZAMÓWIENIA'!H120 -> 0 | E112: =IFERROR('DRUK ZAMÓWIENIA'!N120,0) -> 0 | F112: ='DRUK ZAMÓWIENIA'!R120 -> A
A113: 97 | B113: ='DRUK ZAMÓWIENIA'!Q121 -> 5901939000794 | C113: ='DRUK ZAMÓWIENIA'!D121 -> Mleko Wiejskie 3,2% | D113: ='DRUK ZAMÓWIENIA'!H121 -> 0 | E113: =IFERROR('DRUK ZAMÓWIENIA'!N121,0) -> 0 | F113: ='DRUK ZAMÓWIENIA'!R121 -> A
A114: 98 | B114: ='DRUK ZAMÓWIENIA'!Q122 -> 5901939002323 | C114: ='DRUK ZAMÓWIENIA'!D122 -> Mleko do Kawy | D114: ='DRUK ZAMÓWIENIA'!H122 -> 0 | E114: =IFERROR('DRUK ZAMÓWIENIA'!N122,0) -> 0 | F114: ='DRUK ZAMÓWIENIA'!R122 -> A
A115: 99 | B115: ='DRUK ZAMÓWIENIA'!Q123 -> 5901939002002 | C115: ='DRUK ZAMÓWIENIA'!D123 -> Mleko BIO | D115: ='DRUK ZAMÓWIENIA'!H123 -> 0 | E115: =IFERROR('DRUK ZAMÓWIENIA'!N123,0) -> 0 | F115: ='DRUK ZAMÓWIENIA'!R123 -> A
A116: 100 | B116: ='DRUK ZAMÓWIENIA'!Q124 -> 5901939002019 | C116: ='DRUK ZAMÓWIENIA'!D124 -> Wiejskie BEZ LAKTOZY 2% | D116: ='DRUK ZAMÓWIENIA'!H124 -> 0 | E116: =IFERROR('DRUK ZAMÓWIENIA'!N124,0) -> 0 | F116: ='DRUK ZAMÓWIENIA'!R124 -> A
A117: 101 | B117: ='DRUK ZAMÓWIENIA'!Q125 -> 5901939004082 | C117: ='DRUK ZAMÓWIENIA'!D125 -> Mleko UHT 2% | D117: ='DRUK ZAMÓWIENIA'!H125 -> 0 | E117: =IFERROR('DRUK ZAMÓWIENIA'!N125,0) -> 0 | F117: ='DRUK ZAMÓWIENIA'!R125 -> N
A118: 102 | B118: ='DRUK ZAMÓWIENIA'!Q126 -> 5901939004099 | C118: ='DRUK ZAMÓWIENIA'!D126 -> Mleko UHT 3,2% | D118: ='DRUK ZAMÓWIENIA'!H126 -> 0 | E118: =IFERROR('DRUK ZAMÓWIENIA'!N126,0) -> 0 | F118: ='DRUK ZAMÓWIENIA'!R126 -> N
A119: 103 | B119: ='DRUK ZAMÓWIENIA'!Q127 -> 5901939004112 | C119: ='DRUK ZAMÓWIENIA'!D127 -> MLEKO BIO UHT 2,5% 1l | D119: ='DRUK ZAMÓWIENIA'!H127 -> 0 | E119: =IFERROR('DRUK ZAMÓWIENIA'!N127,0) -> 0 | F119: ='DRUK ZAMÓWIENIA'!R127 -> N
A120: 104 | B120: ='DRUK ZAMÓWIENIA'!Q128 -> 5901939004105 | C120: ='DRUK ZAMÓWIENIA'!D128 -> BEZ LAKTOZY UHT 1,5% 1l | D120: ='DRUK ZAMÓWIENIA'!H128 -> 0 | E120: =IFERROR('DRUK ZAMÓWIENIA'!N128,0) -> 0 | F120: ='DRUK ZAMÓWIENIA'!R128 -> N
A121: 105 | B121: ='DRUK ZAMÓWIENIA'!Q129 -> 5901939004181 | C121: ='DRUK ZAMÓWIENIA'!D129 -> MLEKO UHT DO KAWY 3,2% 1L | D121: ='DRUK ZAMÓWIENIA'!H129 -> 0 | E121: =IFERROR('DRUK ZAMÓWIENIA'!N129,0) -> 0 | F121: ='DRUK ZAMÓWIENIA'!R129 -> N
A122: 106 | B122: ='DRUK ZAMÓWIENIA'!Q130 -> 5901939003016 | C122: ='DRUK ZAMÓWIENIA'!D130 -> Mleko czekoladowe 330ml | D122: ='DRUK ZAMÓWIENIA'!H130 -> 0 | E122: =IFERROR('DRUK ZAMÓWIENIA'!N130,0) -> 0 | F122: ='DRUK ZAMÓWIENIA'!R130 -> N
A123: 107 | B123: ='DRUK ZAMÓWIENIA'!Q131 -> 5901939003023 | C123: ='DRUK ZAMÓWIENIA'!D131 -> Mleko waniliowe 330ml | D123: ='DRUK ZAMÓWIENIA'!H131 -> 0 | E123: =IFERROR('DRUK ZAMÓWIENIA'!N131,0) -> 0 | F123: ='DRUK ZAMÓWIENIA'!R131 -> N
A124: 108 | B124: ='DRUK ZAMÓWIENIA'!Q132 -> 5901939003030 | C124: ='DRUK ZAMÓWIENIA'!D132 -> Mleko truskawkowe 330ml | D124: ='DRUK ZAMÓWIENIA'!H132 -> 0 | E124: =IFERROR('DRUK ZAMÓWIENIA'!N132,0) -> 0 | F124: ='DRUK ZAMÓWIENIA'!R132 -> N
A125: 109 | B125: ='DRUK ZAMÓWIENIA'!Q133 -> 5901939003047 | C125: ='DRUK ZAMÓWIENIA'!D133 -> Mleko bananowe 330ml | D125: ='DRUK ZAMÓWIENIA'!H133 -> 0 | E125: =IFERROR('DRUK ZAMÓWIENIA'!N133,0) -> 0 | F125: ='DRUK ZAMÓWIENIA'!R133 -> N
A126: 110 | B126: ='DRUK ZAMÓWIENIA'!Q134 -> 5901939003207 | C126: ='DRUK ZAMÓWIENIA'!D134 -> Mleko z Belgijską Czekoladą 330ml | D126: ='DRUK ZAMÓWIENIA'!H134 -> 0 | E126: =IFERROR('DRUK ZAMÓWIENIA'!N134,0) -> 0 | F126: ='DRUK ZAMÓWIENIA'!R134 -> N
A127: 111 | B127: ='DRUK ZAMÓWIENIA'!Q135 -> 5901939003214 | C127: ='DRUK ZAMÓWIENIA'!D135 -> Mleko kokosowo migdałowe 330ml | D127: ='DRUK ZAMÓWIENIA'!H135 -> 0 | E127: =IFERROR('DRUK ZAMÓWIENIA'!N135,0) -> 0 | F127: ='DRUK ZAMÓWIENIA'!R135 -> N
A128: 112 | B128: ='DRUK ZAMÓWIENIA'!Q136 -> 5901939003009 | C128: ='DRUK ZAMÓWIENIA'!D136 -> Maslanka | D128: ='DRUK ZAMÓWIENIA'!H136 -> 0 | E128: =IFERROR('DRUK ZAMÓWIENIA'!N136,0) -> 0 | F128: ='DRUK ZAMÓWIENIA'!R136 -> N
A129: 113 | B129: ='DRUK ZAMÓWIENIA'!Q137 -> 5901939030012 | C129: ='DRUK ZAMÓWIENIA'!D137 -> Masło EXTRA | D129: ='DRUK ZAMÓWIENIA'!H137 -> 0 | E129: =IFERROR('DRUK ZAMÓWIENIA'!N137,0) -> 0 | F129: ='DRUK ZAMÓWIENIA'!R137 -> A
A130: 114 | B130: ='DRUK ZAMÓWIENIA'!Q138 -> 5901939000404 | C130: ='DRUK ZAMÓWIENIA'!D138 -> Śmietankowy SMAK z Ostrołęki | D130: ='DRUK ZAMÓWIENIA'!H138 -> 0 | E130: =IFERROR('DRUK ZAMÓWIENIA'!N138,0) -> 0 | F130: ='DRUK ZAMÓWIENIA'!R138 -> A
A131: 115 | B131: ='DRUK ZAMÓWIENIA'!Q139 -> 5901939006031 | C131: ='DRUK ZAMÓWIENIA'!D139 -> KOKTAJL MANGO MARAKUJA | D131: ='DRUK ZAMÓWIENIA'!H139 -> 0 | E131: =IFERROR('DRUK ZAMÓWIENIA'!N139,0) -> 0 | F131: ='DRUK ZAMÓWIENIA'!R139 -> A
A132: 116 | B132: ='DRUK ZAMÓWIENIA'!Q140 -> 5901939006017 | C132: ='DRUK ZAMÓWIENIA'!D140 -> KOKTAJL MALINA GRANAT | D132: ='DRUK ZAMÓWIENIA'!H140 -> 0 | E132: =IFERROR('DRUK ZAMÓWIENIA'!N140,0) -> 0 | F132: ='DRUK ZAMÓWIENIA'!R140 -> A
A133: 117 | B133: ='DRUK ZAMÓWIENIA'!Q141 -> 5901939006048 | C133: ='DRUK ZAMÓWIENIA'!D141 -> KOKTAJL TRUSKAWKA BANAN | D133: ='DRUK ZAMÓWIENIA'!H141 -> 0 | E133: =IFERROR('DRUK ZAMÓWIENIA'!N141,0) -> 0 | F133: ='DRUK ZAMÓWIENIA'!R141 -> A
A134: 118 | B134: ='DRUK ZAMÓWIENIA'!Q142 -> 5901939105000 | C134: ='DRUK ZAMÓWIENIA'!D142 -> PIATNICA ROSLINNA OWSIANA 1l | D134: ='DRUK ZAMÓWIENIA'!H142 -> 0 | E134: =IFERROR('DRUK ZAMÓWIENIA'!N142,0) -> 0 | F134: ='DRUK ZAMÓWIENIA'!R142 -> A
A135: 119 | B135: ='DRUK ZAMÓWIENIA'!Q143 -> 5901939105062 | C135: ='DRUK ZAMÓWIENIA'!D143 -> PIATNICA ROSLINNA SOJOWA 1l | D135: ='DRUK ZAMÓWIENIA'!H143 -> 0 | E135: =IFERROR('DRUK ZAMÓWIENIA'!N143,0) -> 0 | F135: ='DRUK ZAMÓWIENIA'!R143 -> N
A136: 120 | B136: ='DRUK ZAMÓWIENIA'!Q144 -> 5901939105024 | C136: ='DRUK ZAMÓWIENIA'!D144 -> PIATNICA ROSLINNA RYZOWA 1l | D136: ='DRUK ZAMÓWIENIA'!H144 -> 0 | E136: =IFERROR('DRUK ZAMÓWIENIA'!N144,0) -> 0 | F136: ='DRUK ZAMÓWIENIA'!R144 -> N
A137: 121 | B137: ='DRUK ZAMÓWIENIA'!Q145 -> 5901939105086 | C137: ='DRUK ZAMÓWIENIA'!D145 -> PIATNICA ROSLINNA MIGDALOWA 1l | D137: ='DRUK ZAMÓWIENIA'!H145 -> 0 | E137: =IFERROR('DRUK ZAMÓWIENIA'!N145,0) -> 0 | F137: ='DRUK ZAMÓWIENIA'!R145 -> A
A138: 122 | B138: ='DRUK ZAMÓWIENIA'!Q146 -> 0 | C138: ='DRUK ZAMÓWIENIA'!D146 -> Liczba zamówionych pozycji | D138: ='DRUK ZAMÓWIENIA'!H146 -> 0 | E138: =IFERROR('DRUK ZAMÓWIENIA'!N146,0) -> 0 | F138: ='DRUK ZAMÓWIENIA'!R146 -> 0
A139: 123 | B139: ='DRUK ZAMÓWIENIA'!Q147 -> 0 | C139: ='DRUK ZAMÓWIENIA'!D147 -> 0 | D139: ='DRUK ZAMÓWIENIA'!H147 -> 0 | E139: =IFERROR('DRUK ZAMÓWIENIA'!N147,0) -> 0 | F139: ='DRUK ZAMÓWIENIA'!R147 -> 0
A140: 124 | B140: ='DRUK ZAMÓWIENIA'!Q148 -> 0 | C140: ='DRUK ZAMÓWIENIA'!D148 -> 0 | D140: ='DRUK ZAMÓWIENIA'!H148 -> 0 | E140: =IFERROR('DRUK ZAMÓWIENIA'!N148,0) -> 0 | F140: ='DRUK ZAMÓWIENIA'!R148 -> 0
A141: 125 | B141: ='DRUK ZAMÓWIENIA'!Q149 -> 0 | C141: ='DRUK ZAMÓWIENIA'!D149 -> 0 | D141: ='DRUK ZAMÓWIENIA'!H149 -> 0 | E141: =IFERROR('DRUK ZAMÓWIENIA'!N149,0) -> 0 | F141: ='DRUK ZAMÓWIENIA'!R149 -> 0
A142: 126 | B142: ='DRUK ZAMÓWIENIA'!Q150 -> 5900531000904 | C142: ='DRUK ZAMÓWIENIA'!D150 -> Twój Smak HoReCa 1kg | D142: ='DRUK ZAMÓWIENIA'!H150 -> 0 | E142: =IFERROR('DRUK ZAMÓWIENIA'!N150,0) -> 0 | F142: ='DRUK ZAMÓWIENIA'!R150 -> A
A143: 127 | B143: ='DRUK ZAMÓWIENIA'!Q151 -> 5900531000997 | C143: ='DRUK ZAMÓWIENIA'!D151 -> Twój Smak do SUSHI 1kg | D143: ='DRUK ZAMÓWIENIA'!H151 -> 0 | E143: =IFERROR('DRUK ZAMÓWIENIA'!N151,0) -> 0 | F143: ='DRUK ZAMÓWIENIA'!R151 -> A
A144: 128 | B144: ='DRUK ZAMÓWIENIA'!Q152 -> 5900531001802 | C144: ='DRUK ZAMÓWIENIA'!D152 -> Serek kremowy 5kg | D144: ='DRUK ZAMÓWIENIA'!H152 -> 0 | E144: =IFERROR('DRUK ZAMÓWIENIA'!N152,0) -> 0 | F144: ='DRUK ZAMÓWIENIA'!R152 -> A
A145: 129 | B145: ='DRUK ZAMÓWIENIA'!Q153 -> 5900531001413 | C145: ='DRUK ZAMÓWIENIA'!D153 -> Twój Smak HoReCa 5kg | D145: ='DRUK ZAMÓWIENIA'!H153 -> 0 | E145: =IFERROR('DRUK ZAMÓWIENIA'!N153,0) -> 0 | F145: ='DRUK ZAMÓWIENIA'!R153 -> A
A146: 130 | B146: ='DRUK ZAMÓWIENIA'!Q154 -> 0 | C146: ='DRUK ZAMÓWIENIA'!D154 -> Twój Smak HoReCa 5kg | D146: ='DRUK ZAMÓWIENIA'!H154 -> 0 | E146: =IFERROR('DRUK ZAMÓWIENIA'!N154,0) -> 0 | F146: ='DRUK ZAMÓWIENIA'!R154 -> N
A147: 131 | B147: ='DRUK ZAMÓWIENIA'!Q155 -> 5900531050022 | C147: ='DRUK ZAMÓWIENIA'!D155 -> Serek wiejski 3kg | D147: ='DRUK ZAMÓWIENIA'!H155 -> 0 | E147: =IFERROR('DRUK ZAMÓWIENIA'!N155,0) -> 0 | F147: ='DRUK ZAMÓWIENIA'!R155 -> A
A148: 132 | B148: ='DRUK ZAMÓWIENIA'!Q156 -> 5900531001673 | C148: ='DRUK ZAMÓWIENIA'!D156 -> Jogurt 2% HoReCa 1kg | D148: ='DRUK ZAMÓWIENIA'!H156 -> 0 | E148: =IFERROR('DRUK ZAMÓWIENIA'!N156,0) -> 0 | F148: ='DRUK ZAMÓWIENIA'!R156 -> A
A149: 133 | B149: ='DRUK ZAMÓWIENIA'!Q157 -> 5900531001642 | C149: ='DRUK ZAMÓWIENIA'!D157 -> Jogurt 2% wiaderko | D149: ='DRUK ZAMÓWIENIA'!H157 -> 0 | E149: =IFERROR('DRUK ZAMÓWIENIA'!N157,0) -> 0 | F149: ='DRUK ZAMÓWIENIA'!R157 -> A
A150: 134 | B150: ='DRUK ZAMÓWIENIA'!Q159 -> 5900531008054 | C150: ='DRUK ZAMÓWIENIA'!D159 -> Jogurt naturalny100g | D150: ='DRUK ZAMÓWIENIA'!H159 -> 0 | E150: =IFERROR('DRUK ZAMÓWIENIA'!N159,0) -> 0 | F150: ='DRUK ZAMÓWIENIA'!R159 -> A
A151: 135 | B151: ='DRUK ZAMÓWIENIA'!Q160 -> 5900531108990 | C151: ='DRUK ZAMÓWIENIA'!D160 -> Jogurt owocowy MIX 20 x 100g | D151: ='DRUK ZAMÓWIENIA'!H160 -> 0 | E151: =IFERROR('DRUK ZAMÓWIENIA'!N160,0) -> 0 | F151: ='DRUK ZAMÓWIENIA'!R160 -> A
A152: 136 | B152: ='DRUK ZAMÓWIENIA'!Q161 -> 5900531004995 | C152: ='DRUK ZAMÓWIENIA'!D161 -> JOGURT SKYR NATURALNY 0% 5kg | D152: ='DRUK ZAMÓWIENIA'!H161 -> 0 | E152: =IFERROR('DRUK ZAMÓWIENIA'!N161,0) -> 0 | F152: ='DRUK ZAMÓWIENIA'!R161 -> A
A153: 136 | B153: ='DRUK ZAMÓWIENIA'!Q162 -> 5900531001482 | C153: ='DRUK ZAMÓWIENIA'!D162 -> Mascarpone 5kg | D153: ='DRUK ZAMÓWIENIA'!H162 -> 0 | E153: =IFERROR('DRUK ZAMÓWIENIA'!N162,0) -> 0 | F153: ='DRUK ZAMÓWIENIA'!R162 -> A
A154: 137 | B154: ='DRUK ZAMÓWIENIA'!Q163 -> 5900531001765 | C154: ='DRUK ZAMÓWIENIA'!D163 -> Mascarpone 3kg | D154: ='DRUK ZAMÓWIENIA'!H163 -> 0 | E154: =IFERROR('DRUK ZAMÓWIENIA'!N163,0) -> 0 | F154: ='DRUK ZAMÓWIENIA'!R163 -> A
A155: 138 | B155: ='DRUK ZAMÓWIENIA'!Q164 -> 5900531004186 | C155: ='DRUK ZAMÓWIENIA'!D164 -> Twaróg Sernikowy 5kg | D155: ='DRUK ZAMÓWIENIA'!H164 -> 0 | E155: =IFERROR('DRUK ZAMÓWIENIA'!N164,0) -> 0 | F155: ='DRUK ZAMÓWIENIA'!R164 -> A
A156: 139 | B156: ='DRUK ZAMÓWIENIA'!Q166 -> 5900531001321 | C156: ='DRUK ZAMÓWIENIA'!D166 -> Śmietanka 12% wiaderka | D156: ='DRUK ZAMÓWIENIA'!H166 -> 0 | E156: =IFERROR('DRUK ZAMÓWIENIA'!N166,0) -> 0 | F156: ='DRUK ZAMÓWIENIA'!R166 -> A
A157: 140 | B157: ='DRUK ZAMÓWIENIA'!Q167 -> 5900531001598 | C157: ='DRUK ZAMÓWIENIA'!D167 -> Smietana 12% HoReCa 1kg | D157: ='DRUK ZAMÓWIENIA'!H167 -> 0 | E157: =IFERROR('DRUK ZAMÓWIENIA'!N167,0) -> 0 | F157: ='DRUK ZAMÓWIENIA'!R167 -> A
A158: 141 | B158: ='DRUK ZAMÓWIENIA'!Q168 -> 5900531001727 | C158: ='DRUK ZAMÓWIENIA'!D168 -> Śmietanka 18% wiaderka 3kg | D158: ='DRUK ZAMÓWIENIA'!H168 -> 0 | E158: =IFERROR('DRUK ZAMÓWIENIA'!N168,0) -> 0 | F158: ='DRUK ZAMÓWIENIA'!R168 -> A
A159: 142 | B159: ='DRUK ZAMÓWIENIA'!Q169 -> 5901939005041 | C159: ='DRUK ZAMÓWIENIA'!D169 -> Śmietana 18% UHT 1l | D159: ='DRUK ZAMÓWIENIA'!H169 -> 0 | E159: =IFERROR('DRUK ZAMÓWIENIA'!N169,0) -> 0 | F159: ='DRUK ZAMÓWIENIA'!R169 -> N
A160: 143 | B160: ='DRUK ZAMÓWIENIA'!Q170 -> 5900531001314 | C160: ='DRUK ZAMÓWIENIA'!D170 -> ŚMIETANA 18% 10L | D160: ='DRUK ZAMÓWIENIA'!H170 -> 0 | E160: =IFERROR('DRUK ZAMÓWIENIA'!N170,0) -> 0 | F160: ='DRUK ZAMÓWIENIA'!R170 -> A
A161: 143 | B161: ='DRUK ZAMÓWIENIA'!Q171 -> 5900531001604 | C161: ='DRUK ZAMÓWIENIA'!D171 -> Śmietana 18% HoReCa 1kg | D161: ='DRUK ZAMÓWIENIA'!H171 -> 0 | E161: =IFERROR('DRUK ZAMÓWIENIA'!N171,0) -> 0 | F161: ='DRUK ZAMÓWIENIA'!R171 -> A
A162: 144 | B162: ='DRUK ZAMÓWIENIA'!Q172 -> 5900531001277 | C162: ='DRUK ZAMÓWIENIA'!D172 -> Śmietanka 30% wiaderka | D162: ='DRUK ZAMÓWIENIA'!H172 -> 0 | E162: =IFERROR('DRUK ZAMÓWIENIA'!N172,0) -> 0 | F162: ='DRUK ZAMÓWIENIA'!R172 -> A
A163: 145 | B163: ='DRUK ZAMÓWIENIA'!Q173 -> 5901939005058 | C163: ='DRUK ZAMÓWIENIA'!D173 -> Śmietana 30% UHT 1l | D163: ='DRUK ZAMÓWIENIA'!H173 -> 0 | E163: =IFERROR('DRUK ZAMÓWIENIA'!N173,0) -> 0 | F163: ='DRUK ZAMÓWIENIA'!R173 -> A
A164: 146 | B164: ='DRUK ZAMÓWIENIA'!Q174 -> 5900531001123 | C164: ='DRUK ZAMÓWIENIA'!D174 -> Śmietana 36% wiaderka | D164: ='DRUK ZAMÓWIENIA'!H174 -> 0 | E164: =IFERROR('DRUK ZAMÓWIENIA'!N174,0) -> 0 | F164: ='DRUK ZAMÓWIENIA'!R174 -> A
A165: 147 | B165: ='DRUK ZAMÓWIENIA'!Q175 -> 0 | C165: ='DRUK ZAMÓWIENIA'!D175 -> Śmietanka 42% wiaderka | D165: ='DRUK ZAMÓWIENIA'!H175 -> 0 | E165: =IFERROR('DRUK ZAMÓWIENIA'!N175,0) -> 0 | F165: ='DRUK ZAMÓWIENIA'!R175 -> N
A166: 148 | B166: ='DRUK ZAMÓWIENIA'!Q176 -> 0 | C166: ='DRUK ZAMÓWIENIA'!D176 -> Liczba zamówionych pozycji | D166: ='DRUK ZAMÓWIENIA'!H176 -> 0 | E166: =IFERROR('DRUK ZAMÓWIENIA'!N176,0) -> 0 | F166: ='DRUK ZAMÓWIENIA'!R176 -> 0
A167: 149 | B167: ='DRUK ZAMÓWIENIA'!Q177 -> 0 | C167: ='DRUK ZAMÓWIENIA'!D177 -> 0 | D167: ='DRUK ZAMÓWIENIA'!H177 -> 0 | E167: =IFERROR('DRUK ZAMÓWIENIA'!N177,0) -> 0 | F167: ='DRUK ZAMÓWIENIA'!R177 -> 0
A168: 150 | B168: ='DRUK ZAMÓWIENIA'!Q178 -> 0 | C168: ='DRUK ZAMÓWIENIA'!D178 -> 0 | D168: ='DRUK ZAMÓWIENIA'!H178 -> 0 | E168: =IFERROR('DRUK ZAMÓWIENIA'!N178,0) -> Kontakt: | F168: ='DRUK ZAMÓWIENIA'!R178 -> 0
A169: 151 | B169: ='DRUK ZAMÓWIENIA'!Q179 -> 0 | C169: ='DRUK ZAMÓWIENIA'!D179 -> 0 | D169: ='DRUK ZAMÓWIENIA'!H179 -> 0 | E169: =IFERROR('DRUK ZAMÓWIENIA'!N179,0) -> 0 | F169: ='DRUK ZAMÓWIENIA'!R179 -> 0
A170: 152 | B170: ='DRUK ZAMÓWIENIA'!Q180 -> 0 | C170: ='DRUK ZAMÓWIENIA'!D180 -> 0 | D170: ='DRUK ZAMÓWIENIA'!H180 -> 0 | E170: =IFERROR('DRUK ZAMÓWIENIA'!N180,0) -> 0 | F170: ='DRUK ZAMÓWIENIA'!R180 -> 0
A171: 153 | B171: ='DRUK ZAMÓWIENIA'!Q181 -> 0 | D171: ='DRUK ZAMÓWIENIA'!H181 -> 0 | E171: =IFERROR('DRUK ZAMÓWIENIA'!N181,0) -> 0 | F171: ='DRUK ZAMÓWIENIA'!R181 -> 0
A172: 154 | B172: ='DRUK ZAMÓWIENIA'!Q182 -> 0 | D172: ='DRUK ZAMÓWIENIA'!H182 -> 0 | E172: =IFERROR('DRUK ZAMÓWIENIA'!N182,0) -> 0 | F172: ='DRUK ZAMÓWIENIA'!R182 -> 0
A173: 155 | B173: ='DRUK ZAMÓWIENIA'!Q183 -> 0 | D173: ='DRUK ZAMÓWIENIA'!H183 -> 0 | E173: =IFERROR('DRUK ZAMÓWIENIA'!N183,0) -> 0 | F173: ='DRUK ZAMÓWIENIA'!R183 -> 0
A174: 156 | B174: ='DRUK ZAMÓWIENIA'!Q184 -> 0 | D174: ='DRUK ZAMÓWIENIA'!H184 -> 0 | E174: =IFERROR('DRUK ZAMÓWIENIA'!N184,0) -> 0 | F174: ='DRUK ZAMÓWIENIA'!R184 -> 0
A175: 157 | B175: ='DRUK ZAMÓWIENIA'!Q185 -> 0 | D175: ='DRUK ZAMÓWIENIA'!H185 -> 0 | E175: =IFERROR('DRUK ZAMÓWIENIA'!N185,0) -> 0 | F175: ='DRUK ZAMÓWIENIA'!R185 -> 0
A176: 158 | B176: ='DRUK ZAMÓWIENIA'!Q186 -> 0 | D176: ='DRUK ZAMÓWIENIA'!H186 -> 0 | E176: =IFERROR('DRUK ZAMÓWIENIA'!N186,0) -> 0 | F176: ='DRUK ZAMÓWIENIA'!R186 -> 0
A177: 159 | B177: ='DRUK ZAMÓWIENIA'!Q187 -> 0 | D177: ='DRUK ZAMÓWIENIA'!H187 -> 0 | E177: =IFERROR('DRUK ZAMÓWIENIA'!N187,0) -> 0 | F177: ='DRUK ZAMÓWIENIA'!R187 -> 0
A178: 160 | B178: ='DRUK ZAMÓWIENIA'!Q188 -> 0 | D178: ='DRUK ZAMÓWIENIA'!H188 -> 0 | E178: =IFERROR('DRUK ZAMÓWIENIA'!N188,0) -> 0 | F178: ='DRUK ZAMÓWIENIA'!R188 -> 0
